{"text_format":"1","workbook":"xlsx","n_sheets":4,"sheets":["PRADŽIA","NAUDOJIMOSI INSTRUKCIJA","SKAIČIUOKLĖ","ATNAUJINIMAS"],"not_rendered":{"charts":1,"images":17,"macros":1,"external_links":1,"defined_names":5,"comments":0,"pivot_tables":0},"unopened":[],"bounds":{"document_bytes":16777216,"sheet_cells":100000,"rows_first":2000,"rows_last":500,"rows_between":2000,"halvings":0,"cell_chars":16384,"cell_head_chars":4096},"cells_cut":0,"cells_raw":0,"read":"whole","date_system":"1900"}

{"sheet":"PRADŽIA","index":0,"n_rows":0,"n_cols":0,"rows_kept":0,"cut":false,"hidden":false,"merged":[[0,17,4,21]]}

{"sheet":"NAUDOJIMOSI INSTRUKCIJA","index":1,"n_rows":0,"n_cols":0,"rows_kept":0,"cut":false,"hidden":false,"merged":[]}

{"sheet":"SKAIČIUOKLĖ","index":2,"n_rows":273,"n_cols":50,"rows_kept":273,"cut":false,"hidden":false,"merged":[[2,5,3,14],[19,6,22,6],[22,9,22,14]]}
[null,null,null,null,null,null,null,null,null,null,null,null,null,null,null,null,null,null,null,null,null,null,2023,"Duomenys \"helper\" stulpeliams",null,null,"Helper stulpeliai",null,null,null,null,"Degalų rušies dropdown'ui. Pagal H3 stulpelį suranda kokios kuro rūšis aktualios TP klasei"]
[null,null,null,null,null,null,null,null,null,null,null,null,null,null,null,null,null,null,null,null,null,"Dropdown'o pasirinkimai","E","Priemonės tipas","Kuro tipas","kt CO2 eq. per metus",null,"H1","H2","H3",null,"Dropdown 2",null,null,"H2 for old vehicle CO2 eq. value","H3 for CO2 eq. value",null,null,"H2 for new vehicle CO2 value",null,null,"Emisija per vieną transporto priemonę, g CO2 ekvivalento per km pagal TP kategoriją",2023,2024,2025,2026,2027,2028,2029,2030]
[null,null,null,null,null," TRANSPORTO PRIEMONIŲ DEGALŲ RŪŠIES REGULIAVIMO POVEIKIO VERTINIMO SKAIČIUOKLĖ  ",null,null,null,null,null,null,null,null,null,null,null,null,null,null,null,"M1",null,"M1","Benzinas",{"$f":"AQ3","v":1.6000000000000001E-3},null,1,{"$f":"IF(X3=H$12,AB3,\"\")","v":""},{"$f":"IFERROR(SMALL(AC$3:AC$33,AB3),\"\")","v":12},null,{"$f":"IFERROR(INDEX(Y$3:Y$33,AD3,COLUMNS(AF3:AF3)),\"\")","v":"Dyzelinas"},null,null,{"$f":"IF(AND(H$12=X3,Y3=H$14),AB3,\"\")","v":""},{"$f":"IFERROR(SMALL(AI$3:AI$33,AB3),\"\")","v":12},null,null,{"$f":"IF(AND(H$12=X3,Y3=H$18),AB3,\"\")","v":""},{"$f":"IFERROR(SMALL(AM$3:AM$33,AB3),\"\")","v":13},null,"Automobilių benzinas (be biodegalų)   M1",1.6000000000000001E-3,1.6000000000000001E-3,1.5E-3,1.5E-3,1.5E-3,1.5E-3,1.5E-3,1.4E-3]
[null,null,null,null,null,null,null,null,null,null,null,null,null,null,null,null,null,null,null,null,null,"M2",null,"M1","Suskystintos naftos dujos",{"$f":"AQ5","v":2.5999999999999999E-3},null,2,"",13,null,{"$f":"IFERROR(INDEX(Y$3:Y$33,AD4,COLUMNS(AF4:AF4)),\"\")","v":"Elektra"},null,null,"","",null,null,"","",null,"Kelių transporto dyzelinas (be biodegalų)  M1",2E-3,1.9E-3,1.9E-3,1.8E-3,1.8E-3,1.6999999999999999E-3,1.6000000000000001E-3,1.5E-3]
[null,null,null,null,null,null,null,null,null,null,null,null,null,null,null,null,null,null,null,null,null,"M3",null,"M1","Benzinas/Elektra (hibridiniai)",{"$f":"AQ6","v":2.8999999999999998E-3},null,3,"","",null,{"$f":"IFERROR(INDEX(Y$3:Y$33,AD5,COLUMNS(AF5:AF5)),\"\")","v":""},null,null,"","",null,null,"","",null,"Suskystintos naftos dujos   M1",2.5999999999999999E-3,2.5999999999999999E-3,2.7000000000000001E-3,2.7000000000000001E-3,2.7000000000000001E-3,2.7000000000000001E-3,2.7000000000000001E-3,2.8E-3]
[null,null,null,null,null,null,null,null,null,null,null,null,null,null,null,null,null,null,null,null,null,"N1",null,"M1","Dyzelinas",{"$f":"AQ4","v":2E-3},null,4,"","",null,{"$f":"IFERROR(INDEX(Y$3:Y$33,AD6,COLUMNS(AF6:AF6)),\"\")","v":""},null,null,"","",null,null,"","",null,"Benzinas/Elektra (hibridiniai) M1",2.8999999999999998E-3,2.8999999999999998E-3,2.8999999999999998E-3,2.8999999999999998E-3,2.8999999999999998E-3,2.8999999999999998E-3,2.8999999999999998E-3,2.8999999999999998E-3]
[null,null,null,null,null,"Metai","Numatyta reikšmė",2023,2024,2025,2026,2027,2028,2029,2030,null,null,null,null,null,null,"N2",null,"M1","Elektra",0,null,5,"","",null,{"$f":"IFERROR(INDEX(Y$3:Y$33,AD7,COLUMNS(AF7:AF7)),\"\")","v":""},null,null,"","",null,null,"","",null,"Vidurkis M1",1.9E-3,1.9E-3,1.9E-3,1.8E-3,1.8E-3,1.8E-3,1.6999999999999999E-3,1.6999999999999999E-3]
[null,null,null,null,null,"Bendras MTP kiekis (vnt.)","Įveskite",100,200,300,300,300,300,300,300,null,null,null,null,null,null,"N3",null,"M1","Vid. taršus automobilis",{"$f":"AQ7","v":1.9E-3},null,6,"","",null,{"$f":"IFERROR(INDEX(Y$3:Y$33,AD8,COLUMNS(AF8:AF8)),\"\")","v":""},null,null,"","",null,null,"","",null,"Autmobilių benzinas (be biodegalų)   N1",3.5000000000000001E-3,3.5000000000000001E-3,3.5000000000000001E-3,3.5000000000000001E-3,3.3999999999999998E-3,3.3999999999999998E-3,3.3999999999999998E-3,3.3999999999999998E-3]
[null,null,null,null,null,null,null,null,null,null,null,null,null,null,null,null,null,null,null,null,null,null,null,null,null,null,null,7,"","",null,{"$f":"IFERROR(INDEX(Y$3:Y$33,AD9,COLUMNS(AF9:AF9)),\"\")","v":""},null,null,"","",null,null,"","",null,"Kelių transporto dyzelinas (be biodegalų)   N1",3.8E-3,3.7000000000000002E-3,3.5000000000000001E-3,3.3999999999999998E-3,3.3E-3,3.2000000000000002E-3,3.0000000000000001E-3,2.8999999999999998E-3]
[null,null,null,null,null,null,null,null,null,null,null,null,null,null,null,null,null,null,null,null,null,null,null,"M2","Dyzelinas",{"$f":"AQ17","v":1.5599999999999999E-2},null,8,"","",null,{"$f":"IFERROR(INDEX(Y$3:Y$33,AD10,COLUMNS(AF10:AF10)),\"\")","v":""},null,null,"","",null,null,"","",null,"Suskystintos naftos dujos   N1",4.5999999999999999E-3,4.5999999999999999E-3,4.5999999999999999E-3,4.5999999999999999E-3,4.5999999999999999E-3,4.5999999999999999E-3,4.5999999999999999E-3,4.5999999999999999E-3]
[null,null,null,null,null,null,null,null,null,null,null,null,null,null,null,null,null,null,null,null,null,null,null,"M2","Elektra",0,null,9,"","",null,{"$f":"IFERROR(INDEX(Y$3:Y$33,AD11,COLUMNS(AF11:AF11)),\"\")","v":""},null,null,"","",null,null,"","",null,"Vidurkis N1",3.8E-3,3.7000000000000002E-3,3.5000000000000001E-3,3.3999999999999998E-3,3.3E-3,3.2000000000000002E-3,3.0000000000000001E-3,2.8999999999999998E-3]
[null,null,null,null,null,"Bendra MTP klasė","Pasirinkite iš sąrašo","M3","M2","N2","N2","N2","N2","N2","N2",null,null,null,null,null,null,null,null,null,null,{"$f":"AQ17","v":1.5599999999999999E-2},null,10,"","",null,{"$f":"IFERROR(INDEX(Y$3:Y$33,AD12,COLUMNS(AF12:AF12)),\"\")","v":""},null,null,"","",null,null,"","",null,"Kelių transporto benzinas (be biodegalų)   N2 (krovininiai)",5.1000000000000004E-3,5.1000000000000004E-3,5.1000000000000004E-3,5.1000000000000004E-3,5.1000000000000004E-3,5.1000000000000004E-3,5.1000000000000004E-3,5.1000000000000004E-3]
[null,null,null,null,null,null,null,null,null,null,null,null,null,null,null,null,null,null,null,null,null,null,null,null,null,null,null,11,"","",null,{"$f":"IFERROR(INDEX(Y$3:Y$33,AD13,COLUMNS(AF13:AF13)),\"\")","v":""},null,null,"","",null,null,"","",null,"Kelių transporto dyzelinas (be biodegalų)   N2 (krovininiai)",9.7999999999999997E-3,9.7999999999999997E-3,9.7999999999999997E-3,9.7999999999999997E-3,9.7999999999999997E-3,9.7999999999999997E-3,9.7999999999999997E-3,9.7999999999999997E-3]
[null,null,null,null,null,"Bazinė degalų rūšis bendram MTP kiekiui","Pasirinkite iš sąrašo","Dyzelinas","Dyzelinas","Dyzelinas","Dyzelinas","Dyzelinas","Dyzelinas","Dyzelinas","Dyzelinas",null,null,null,null,null,null,null,null,"M3","Dyzelinas",{"$f":"AQ18","v":8.8499999999999995E-2},null,12,12,"",null,{"$f":"IFERROR(INDEX(Y$3:Y$33,AD14,COLUMNS(AF14:AF14)),\"\")","v":""},null,null,12,"",null,null,"","",null,"Suskystintos naftos dujos   N2 (krovininiai)",7.9000000000000008E-3,7.9000000000000008E-3,7.9000000000000008E-3,7.9000000000000008E-3,7.9000000000000008E-3,7.9000000000000008E-3,7.9000000000000008E-3,7.9000000000000008E-3]
[null,null,null,null,null,"*Vienos MTP išmetamas bazinis ŠESD kiekis (t CO2 ekv.)","Numatyta reikšmė",{"$f":"IFERROR(INDEX(Z$3:Z$33,AJ3,COLUMNS(H15:H15)),\"\")","v":8.8499999999999995E-2},{"$f":"IFERROR(INDEX(Z$39:Z$69,AJ39,COLUMNS(I15:I15)),\"\")","v":1.5599999999999999E-2},{"$f":"IFERROR(INDEX(Z$73:Z$103,AJ73,COLUMNS(I15:I15)),\"\")","v":9.7999999999999997E-3},{"$f":"IFERROR(INDEX(Z$107:Z$137,AJ107,COLUMNS(K15:K15)),\"\")","v":9.7999999999999997E-3},{"$f":"IFERROR(INDEX(Z$141:Z$171,AJ141,COLUMNS(L15:L15)),\"\")","v":9.7999999999999997E-3},{"$f":"IFERROR(INDEX(Z$175:Z$205,AJ175,COLUMNS(M15:M15)),\"\")","v":9.7999999999999997E-3},{"$f":"IFERROR(INDEX(Z$209:Z$239,AJ209,COLUMNS(N15:N15)),\"\")","v":9.7999999999999997E-3},{"$f":"IFERROR(INDEX(Z$243:Z$273,AJ243,COLUMNS(O15:O15)),\"\")","v":9.7999999999999997E-3},null,null,null,null,null,null,null,null,"M3","Elektra",0,null,13,13,"",null,{"$f":"IFERROR(INDEX(Y$3:Y$33,AD15,COLUMNS(AF15:AF15)),\"\")","v":""},null,null,"","",null,null,13,"",null,"Vidurkis N2",9.4999999999999998E-3,9.4999999999999998E-3,9.4999999999999998E-3,9.4999999999999998E-3,9.4999999999999998E-3,9.4999999999999998E-3,9.4999999999999998E-3,9.4999999999999998E-3]
[null,null,null,null,null,null,null,null,null,null,null,null,null,null,null,null,null,null,null,null,null,null,null,null,null,{"$f":"AQ18","v":8.8499999999999995E-2},null,14,"","",null,{"$f":"IFERROR(INDEX(Y$3:Y$33,AD16,COLUMNS(AF16:AF16)),\"\")","v":""},null,null,"","",null,null,"","",null,"Kelių transporto dyzelinas (be biodegalų) N3 (krovininiai)",2.2599999999999999E-2,2.1700000000000001E-2,2.1100000000000001E-2,1.9800000000000002E-2,1.8700000000000001E-2,1.78E-2,1.6899999999999998E-2,1.5699999999999999E-2]
[null,null,null,null,null,null,null,null,null,null,null,null,null,null,null,null,null,null,null,null,null,null,null,null,null,null,null,15,"","",null,{"$f":"IFERROR(INDEX(Y$3:Y$33,AD17,COLUMNS(AF17:AF17)),\"\")","v":""},null,null,"","",null,null,"","",null,"Kelių transporto dyzelinas (be biodegalų) M2 (autobusai)",1.5599999999999999E-2,1.5599999999999999E-2,1.5599999999999999E-2,1.5599999999999999E-2,1.5599999999999999E-2,1.5599999999999999E-2,1.5599999999999999E-2,1.5599999999999999E-2]
[null,null,null,null,null,"Projektinė  degalų rūšis bendram MTP kiekiui","Pasirinkite iš sąrašo","Elektra","Elektra","Suskystintos naftos dujos","Suskystintos naftos dujos","Suskystintos naftos dujos","Suskystintos naftos dujos","Suskystintos naftos dujos","Suskystintos naftos dujos",null,null,null,null,null,null,null,null,"N1","Benzinas",{"$f":"AQ8","v":3.5000000000000001E-3},null,16,"","",null,{"$f":"IFERROR(INDEX(Y$3:Y$33,AD18,COLUMNS(AF18:AF18)),\"\")","v":""},null,null,"","",null,null,"","",null,"Kelių transporto dyzelinas (be biodegalų) M3 (autobusai)",8.8499999999999995E-2,8.8499999999999995E-2,8.8499999999999995E-2,8.8499999999999995E-2,8.8499999999999995E-2,8.8499999999999995E-2,8.8499999999999995E-2,8.8499999999999995E-2]
[null,null,null,null,null,"*Vienos MTP išmetamas projektinis ŠESD kiekis (t CO2 ekv.)","Numatyta reikšmė",{"$f":"IFERROR(INDEX(Z$3:Z$31,AN3,COLUMNS(H19)),\"\")","v":0},{"$f":"IFERROR(INDEX(Z$39:Z$69,AN39,COLUMNS(I19)),\"\")","v":0},{"$f":"IFERROR(INDEX(Z$73:Z$103,AN73,COLUMNS(J19)),\"\")","v":7.9000000000000008E-3},{"$f":"IFERROR(INDEX(Z$107:Z$137,AN107,COLUMNS(K19)),\"\")","v":7.9000000000000008E-3},{"$f":"IFERROR(INDEX(Z$141:Z$171,AN141,COLUMNS(L19)),\"\")","v":7.9000000000000008E-3},{"$f":"IFERROR(INDEX(Z$175:Z$205,AN175,COLUMNS(M19)),\"\")","v":7.9000000000000008E-3},{"$f":"IFERROR(INDEX(Z$209:Z$239,AN209,COLUMNS(N19)),\"\")","v":7.9000000000000008E-3},{"$f":"IFERROR(INDEX(Z$243:Z$273,AN243,COLUMNS(O19)),\"\")","v":7.9000000000000008E-3},null,null,null,null,null,null,null,null,"N1","Suskystintos naftos dujos",{"$f":"AQ10","v":4.5999999999999999E-3},null,17,"","",null,{"$f":"IFERROR(INDEX(Y$3:Y$33,AD19,COLUMNS(AF19:AF19)),\"\")","v":""},null,null,"","",null,null,"",""]
[null,null,null,null,null,"ŠESD kiekio sumažinimas (kt CO2 ekv.)","Rezultatai",{"$f":"IFERROR(H8*(H15-H19),0)","v":8.85},{"$f":"IFERROR(I8*(I15-I19),0)","v":3.1199999999999997},0.56999999999999962,0.56999999999999962,0.56999999999999962,0.56999999999999962,0.56999999999999962,0.56999999999999962,null,null,null,null,null,null,null,null,"N1","Dyzelinas",{"$f":"AQ9","v":3.8E-3},null,18,"","",null,{"$f":"IFERROR(INDEX(Y$3:Y$33,AD20,COLUMNS(AF20:AF20)),\"\")","v":""},null,null,"","",null,null,"",""]
[null,null,null,null,null,"Kaupiamasis ŠESD kiekio sumažinimas  (kt CO2 ekv.) ",null,{"$f":"H20","v":8.85},{"$f":"H21+I20","v":11.969999999999999},{"$f":"J20","v":0.56999999999999962},1.1399999999999992,1.7099999999999989,2.2799999999999985,2.8499999999999979,3.4199999999999973,null,null,null,null,null,null,null,null,"N1","Elektra",0,null,19,"","",null,{"$f":"IFERROR(INDEX(Y$3:Y$33,AD21,COLUMNS(AF21:AF21)),\"\")","v":""},null,null,"","",null,null,"",""]
[null,null,null,null,null,null,null,null,null,null,null,null,null,null,null,null,null,null,null,null,null,null,null,"N1","Vid. taršus automobilis",{"$f":"AQ11","v":3.8E-3},null,20,"","",null,{"$f":"IFERROR(INDEX(Y$3:Y$33,AD22,COLUMNS(AF22:AF22)),\"\")","v":""},null,null,"","",null,null,"","",null,"Emisija per vieną transporto priemonę, g CO2 ekvivalento per km pagal TP kategoriją",2023,2024,2025,2026,2027,2028,2029,2030]
[null,null,null,null,null,"Suminis  ŠESD kiekio sumažinimas (kt CO2 ekv.)",null,null,null,{"$f":"SUM(J20:O20)","v":3.4199999999999973},null,null,null,null,null,null,null,null,null,null,null,null,null,null,null,null,null,21,"","",null,{"$f":"IFERROR(INDEX(Y$3:Y$33,AD23,COLUMNS(AF23:AF23)),\"\")","v":""},null,null,"","",null,null,"","",null,"Automobilių benzinas (be biodegalų)   M1",1.5E-3,1.4E-3,1.4E-3,1.2999999999999999E-3,1.1999999999999999E-3,1.1999999999999999E-3,1.1000000000000001E-3,1.1000000000000001E-3]
[null,null,null,null,null,null,null,null,null,null,null,null,null,null,null,null,null,null,null,null,null,null,null,"N2","Benzinas",{"$f":"AQ12","v":5.1000000000000004E-3},null,22,"","",null,{"$f":"IFERROR(INDEX(Y$3:Y$33,AD24,COLUMNS(AF24:AF24)),\"\")","v":""},null,null,"","",null,null,"","",null,"Kelių transporto dyzelinas (be biodegalų)  M1",2.2000000000000001E-3,2.0999999999999999E-3,2E-3,1.9E-3,1.8E-3,1.6000000000000001E-3,1.5E-3,1.2999999999999999E-3]
[null,null,null,null,null,null,null,null,null,null,null,null,null,null,null,null,null,null,null,null,null,null,null,"N2","Suskystintos naftos dujos",{"$f":"AQ14","v":7.9000000000000008E-3},null,23,"","",null,{"$f":"IFERROR(INDEX(Y$3:Y$33,AD25,COLUMNS(AF25:AF25)),\"\")","v":""},null,null,"","",null,null,"","",null,"Suskystintos naftos dujos   M1",2.8999999999999998E-3,2.8999999999999998E-3,3.0000000000000001E-3,3.0999999999999999E-3,3.3E-3,3.5000000000000001E-3,3.8999999999999998E-3,4.5999999999999999E-3]
[null,null,null,null,null,null,null,null,null,null,null,null,null,null,null,null,null,null,null,null,null,null,null,"N2","Dyzelinas",{"$f":"AQ13","v":9.7999999999999997E-3},null,24,"","",null,{"$f":"IFERROR(INDEX(Y$3:Y$33,AD26,COLUMNS(AF26:AF26)),\"\")","v":""},null,null,"","",null,null,"","",null,"Benzinas/Elektra (hibridiniai) M1",2.8999999999999998E-3,2.8999999999999998E-3,2.8999999999999998E-3,2.8999999999999998E-3,2.8999999999999998E-3,2.8999999999999998E-3,2.8999999999999998E-3,2.8999999999999998E-3]
[null,null,null,null,null,null,null,null,null,null,null,null,null,null,null,null,null,null,null,null,null,null,null,"N2","Elektra",0,null,25,"","",null,{"$f":"IFERROR(INDEX(Y$3:Y$33,AD27,COLUMNS(AF27:AF27)),\"\")","v":""},null,null,"","",null,null,"","",null,"Vidurkis M1",2E-3,1.9E-3,1.9E-3,1.8E-3,1.6999999999999999E-3,1.6000000000000001E-3,1.6000000000000001E-3,1.5E-3]
[null,null,null,null,null,null,null,null,null,null,null,null,null,null,null,null,null,null,null,null,null,null,null,"N2","Vid. taršus automobilis",{"$f":"AQ15","v":9.4999999999999998E-3},null,26,"","",null,{"$f":"IFERROR(INDEX(Y$3:Y$33,AD28,COLUMNS(AF28:AF28)),\"\")","v":""},null,null,"","",null,null,null,null,null,"Autmobilių benzinas (be biodegalų)   N1",5.4000000000000003E-3,5.4000000000000003E-3,5.4000000000000003E-3,5.4000000000000003E-3,5.4000000000000003E-3,5.4000000000000003E-3,5.4000000000000003E-3,5.4000000000000003E-3]
[null,null,null,null,null,null,null,null,null,null,null,null,null,null,null,null,null,null,null,null,null,null,null,null,null,null,null,27,"","",null,{"$f":"IFERROR(INDEX(Y$3:Y$33,AD29,COLUMNS(AF29:AF29)),\"\")","v":""},null,null,"","",null,null,{"$f":"IF(AND(H$12=X29,Y29=H$18),AB29,\"\")","v":""},{"$f":"IFERROR(SMALL(AM$3:AM$33,AB29),\"\")","v":""},null,"Kelių transporto dyzelinas (be biodegalų)   N1",4.1000000000000003E-3,3.8999999999999998E-3,3.8E-3,3.5999999999999999E-3,3.3999999999999998E-3,3.0999999999999999E-3,2.8999999999999998E-3,2.7000000000000001E-3]
[null,null,null,null,null,null,null,null,null,null,null,null,null,null,null,null,null,null,null,null,null,null,null,"N3","Dyzelinas",{"$f":"AQ16","v":2.2599999999999999E-2},null,28,"","",null,{"$f":"IFERROR(INDEX(Y$3:Y$33,AD30,COLUMNS(AF30:AF30)),\"\")","v":""},null,null,"","",null,null,{"$f":"IF(AND(H$12=X30,Y30=H$18),AB30,\"\")","v":""},{"$f":"IFERROR(SMALL(AM$3:AM$33,AB30),\"\")","v":""},null,"Suskystintos naftos dujos   N1",4.5999999999999999E-3,4.5999999999999999E-3,4.5999999999999999E-3,4.5999999999999999E-3,4.5999999999999999E-3,4.5999999999999999E-3,4.5999999999999999E-3,4.5999999999999999E-3]
[null,null,null,null,null,null,null,null,null,null,null,null,null,null,null,null,null,null,null,null,null,null,null,"N3","Elektra",0,null,29,"","",null,{"$f":"IFERROR(INDEX(Y$3:Y$33,AD31,COLUMNS(AF31:AF31)),\"\")","v":""},null,null,"","",null,null,{"$f":"IF(AND(H$12=X31,Y31=H$18),AB31,\"\")","v":""},{"$f":"IFERROR(SMALL(AM$3:AM$33,AB31),\"\")","v":""},null,"Vidurkis N1",4.3E-3,4.3E-3,4.1999999999999997E-3,4.1000000000000003E-3,4.0000000000000001E-3,3.8999999999999998E-3,3.8E-3,3.7000000000000002E-3]
[null,null,null,null,null,null,null,null,null,null,null,null,null,null,null,null,null,null,null,null,null,null,null,null,null,{"$f":"AQ16","v":2.2599999999999999E-2},null,30,"","",null,{"$f":"IFERROR(INDEX(Y$3:Y$33,AD32,COLUMNS(AF32:AF32)),\"\")","v":""},null,null,"","",null,null,null,null,null,"Kelių transporto benzinas (be biodegalų)   N2 (krovininiai)",1.2E-2,1.2E-2,1.2E-2,1.2E-2,1.2E-2,1.2E-2,1.2E-2,1.2E-2]
[null,null,null,null,null,null,null,null,null,null,null,null,null,null,null,null,null,null,null,null,null,null,null,null,null,null,null,31,"","",null,{"$f":"IFERROR(INDEX(Y$3:Y$33,AD33,COLUMNS(AF33:AF33)),\"\")","v":""},null,null,"","",null,null,{"$f":"IF(AND(H$12=X33,Y33=H$18),AB33,\"\")","v":""},{"$f":"IFERROR(SMALL(AM$3:AM$33,AB33),\"\")","v":""},null,"Kelių transporto dyzelinas (be biodegalų)   N2 (krovininiai)",8.2000000000000007E-3,8.0999999999999996E-3,7.9000000000000008E-3,7.7000000000000002E-3,7.4999999999999997E-3,7.1999999999999998E-3,6.8999999999999999E-3,6.4999999999999997E-3]
[null,null,null,null,null,null,null,null,null,null,null,null,null,null,null,null,null,null,null,null,null,null,null,null,null,null,null,null,null,null,null,null,null,null,null,null,null,null,null,null,null,"Suskystintos naftos dujos   N2 (krovininiai)",7.9000000000000008E-3,7.9000000000000008E-3,7.9000000000000008E-3,7.9000000000000008E-3,7.9000000000000008E-3,7.9000000000000008E-3,7.9000000000000008E-3,7.9000000000000008E-3]
[null,null,null,null,null,null,null,null,null,null,null,null,null,null,null,null,null,null,null,null,null,null,null,null,null,null,null,null,null,null,null,null,null,null,null,null,null,null,null,null,null,"Vidurkis N2",8.6999999999999994E-3,8.6E-3,8.5000000000000006E-3,8.3000000000000001E-3,8.0999999999999996E-3,7.9000000000000008E-3,7.6E-3,7.3000000000000001E-3]
[null,null,null,null,null,null,null,null,null,null,null,null,null,null,null,null,null,null,null,null,null,null,null,null,null,null,null,null,null,null,null,null,null,null,null,null,null,null,null,null,null,"Kelių transporto dyzelinas (be biodegalų) N3 (krovininiai)",2.52E-2,2.4799999999999999E-2,2.4299999999999999E-2,2.3699999999999999E-2,2.29E-2,2.2100000000000002E-2,2.1100000000000001E-2,0.02]
[null,null,null,null,null,null,null,null,null,null,null,null,null,null,null,null,null,null,null,null,null,null,2024,"Duomenys \"helper\" stulpeliams",null,null,"Helper stulpeliai",null,null,null,null,"Degalų rušies dropdown'ui. Pagal H3 stulpelį suranda kokios kuro rūšis aktualios TP klasei",null,null,null,null,null,null,null,null,null,"Kelių transporto dyzelinas (be biodegalų) M2 (autobusai)",2.1100000000000001E-2,2.1600000000000001E-2,2.2100000000000002E-2,2.2700000000000001E-2,1.72E-2,1.61E-2,1.49E-2,1.41E-2]
[null,null,null,null,null,null,null,null,null,null,null,null,null,null,null,null,null,null,null,null,null,null,"G","Priemonės tipas","Kuro tipas","kt CO2 eq. per metus",null,"H1","H2","H3",null,"Dropdown 2",null,null,"H2 for old vehicle CO2 eq. value","H3 for CO2 eq. value",null,null,"H2 for new vehicle CO2 value",null,null,"Kelių transporto dyzelinas (be biodegalų) M3 (autobusai)",0.1198,0.1229,0.12529999999999999,0.12909999999999999,9.7799999999999998E-2,9.1700000000000004E-2,8.4599999999999995E-2,7.9899999999999999E-2]
[null,null,null,null,null,null,null,null,null,null,null,null,null,null,null,null,null,null,null,null,null,null,null,"M1","Benzinas",{"$f":"AR3","v":1.6000000000000001E-3},null,1,{"$f":"IF(X39=I$12,AB39,\"\")","v":""},{"$f":"IFERROR(SMALL(AC$39:AC$69,AB39),\"\")","v":8},null,{"$f":"IFERROR(INDEX(Y$39:Y$69,AD39,COLUMNS(AF39:AF39)),\"\")","v":"Dyzelinas"},null,null,{"$f":"IF(AND(I$12=X39,Y39=I$14),AB39,\"\")","v":""},{"$f":"IFERROR(SMALL(AI$39:AI$69,AB39),\"\")","v":8},null,null,{"$f":"IF(AND(I$12=X39,Y39=I$18),AB39,\"\")","v":""},{"$f":"IFERROR(SMALL(AM$39:AM$69,AB39),\"\")","v":9}]
[null,null,null,null,null,null,null,null,null,null,null,null,null,null,null,null,null,null,null,null,null,null,null,"M1","Suskystintos naftos dujos",{"$f":"AR5","v":2.5999999999999999E-3},null,2,"",9,null,{"$f":"IFERROR(INDEX(Y$39:Y$69,AD40,COLUMNS(AF40:AF40)),\"\")","v":"Elektra"},null,null,"","",null,null,"",""]
[null,null,null,null,null,null,null,null,null,null,null,null,null,null,null,null,null,null,null,null,null,null,null,"M1","Benzinas/Elektra (hibridiniai)",{"$f":"AR6","v":2.8999999999999998E-3},null,3,"","",null,{"$f":"IFERROR(INDEX(Y$39:Y$69,AD41,COLUMNS(AF41:AF41)),\"\")","v":""},null,null,"","",null,null,"",""]
[null,null,null,null,null,"* Prognozė (ekspertinis vertinimas, Aplinkos apsaugos agentūra, 2025 m.)",null,null,null,null,null,null,null,null,null,null,null,null,null,null,null,null,null,"M1","Dyzelinas",{"$f":"AR4","v":1.9E-3},null,4,"","",null,{"$f":"IFERROR(INDEX(Y$39:Y$69,AD42,COLUMNS(AF42:AF42)),\"\")","v":""},null,null,"","",null,null,"",""]
[null,null,null,null,null,null,null,null,null,null,null,null,null,null,null,null,null,null,null,null,null,null,null,"M1","Elektra",0,null,5,"","",null,{"$f":"IFERROR(INDEX(Y$39:Y$69,AD43,COLUMNS(AF43:AF43)),\"\")","v":""},null,null,"","",null,null,"",""]
[null,null,null,null,null,null,null,null,null,null,null,null,null,null,null,null,null,null,null,null,null,null,null,"M1","Vid. taršus automobilis",{"$f":"AR7","v":1.9E-3},null,6,"","",null,{"$f":"IFERROR(INDEX(Y$39:Y$69,AD44,COLUMNS(AF44:AF44)),\"\")","v":""},null,null,"","",null,null,"",""]
[null,null,null,null,null,null,null,null,null,null,null,null,null,null,null,null,null,null,null,null,null,null,null,null,null,null,null,7,"","",null,{"$f":"IFERROR(INDEX(Y$39:Y$69,AD45,COLUMNS(AF45:AF45)),\"\")","v":""},null,null,"","",null,null,"",""]
[null,null,null,null,null,null,null,null,null,null,null,null,null,null,null,null,null,null,null,null,null,null,null,"M2","Dyzelinas",{"$f":"AR17","v":1.5599999999999999E-2},null,8,8,{"$f":"IFERROR(SMALL(AC$39:AC$69,AB46),\"\")","v":""},null,{"$f":"IFERROR(INDEX(Y$39:Y$69,AD46,COLUMNS(AF46:AF46)),\"\")","v":""},null,null,8,"",null,null,"",""]
[null,null,null,null,null,null,null,null,null,null,null,null,null,null,null,null,null,null,null,null,null,null,null,"M2","Elektra",0,null,9,9,"",null,{"$f":"IFERROR(INDEX(Y$39:Y$69,AD47,COLUMNS(AF47:AF47)),\"\")","v":""},null,null,"","",null,null,9,""]
[null,null,null,null,null,null,null,null,null,null,null,null,null,null,null,null,null,null,null,null,null,null,null,null,null,{"$f":"AR17","v":1.5599999999999999E-2},null,10,"","",null,{"$f":"IFERROR(INDEX(Y$39:Y$69,AD48,COLUMNS(AF48:AF48)),\"\")","v":""},null,null,"","",null,null,"",""]
[null,null,null,null,null,null,null,null,null,null,null,null,null,null,null,null,null,null,null,null,null,null,null,null,null,null,null,11,"","",null,{"$f":"IFERROR(INDEX(Y$39:Y$69,AD49,COLUMNS(AF49:AF49)),\"\")","v":""},null,null,"","",null,null,"",""]
[null,null,null,null,null,null,null,null,null,null,null,null,null,null,null,null,null,null,null,null,null,null,null,"M3","Dyzelinas",{"$f":"AR16","v":2.1700000000000001E-2},null,12,"","",null,{"$f":"IFERROR(INDEX(Y$39:Y$69,AD50,COLUMNS(AF50:AF50)),\"\")","v":""},null,null,"","",null,null,"",""]
[null,null,null,null,null,null,null,null,null,null,null,null,null,null,null,null,null,null,null,null,null,null,null,"M3","Elektra",0,null,13,"","",null,{"$f":"IFERROR(INDEX(Y$39:Y$69,AD51,COLUMNS(AF51:AF51)),\"\")","v":""},null,null,"","",null,null,"",""]
[null,null,null,null,null,null,null,null,null,null,null,null,null,null,null,null,null,null,null,null,null,null,null,null,null,{"$f":"AR16","v":2.1700000000000001E-2},null,14,"","",null,{"$f":"IFERROR(INDEX(Y$39:Y$69,AD52,COLUMNS(AF52:AF52)),\"\")","v":""},null,null,"","",null,null,"",""]
[null,null,null,null,null,null,null,null,null,null,null,null,null,null,null,null,null,null,null,null,null,null,null,null,null,null,null,15,"","",null,{"$f":"IFERROR(INDEX(Y$39:Y$69,AD53,COLUMNS(AF53:AF53)),\"\")","v":""},null,null,"","",null,null,"",""]
[null,null,null,null,null,null,null,null,null,null,null,null,null,null,null,null,null,null,null,null,null,null,null,"N1","Benzinas",{"$f":"AR8","v":3.5000000000000001E-3},null,16,"","",null,{"$f":"IFERROR(INDEX(Y$39:Y$69,AD54,COLUMNS(AF54:AF54)),\"\")","v":""},null,null,"","",null,null,"",""]
[null,null,null,null,null,null,null,null,null,null,null,null,null,null,null,null,null,null,null,null,null,null,null,"N1","Suskystintos naftos dujos",{"$f":"AR10","v":4.5999999999999999E-3},null,17,"","",null,{"$f":"IFERROR(INDEX(Y$39:Y$69,AD55,COLUMNS(AF55:AF55)),\"\")","v":""},null,null,"","",null,null,"",""]
[null,null,null,null,null,null,null,null,null,null,null,null,null,null,null,null,null,null,null,null,null,null,null,"N1","Dyzelinas",{"$f":"AR9","v":3.7000000000000002E-3},null,18,"","",null,{"$f":"IFERROR(INDEX(Y$39:Y$69,AD56,COLUMNS(AF56:AF56)),\"\")","v":""},null,null,"","",null,null,"",""]
[null,null,null,null,null,null,null,null,null,null,null,null,null,null,null,null,null,null,null,null,null,null,null,"N1","Elektra",0,null,19,"","",null,{"$f":"IFERROR(INDEX(Y$39:Y$69,AD57,COLUMNS(AF57:AF57)),\"\")","v":""},null,null,"","",null,null,"",""]
[null,null,null,null,null,null,null,null,null,null,null,null,null,null,null,null,null,null,null,null,null,null,null,"N1","Vid. taršus automobilis",{"$f":"AR11","v":3.7000000000000002E-3},null,20,"","",null,{"$f":"IFERROR(INDEX(Y$39:Y$69,AD58,COLUMNS(AF58:AF58)),\"\")","v":""},null,null,"","",null,null,"",""]
[null,null,null,null,null,null,null,null,null,null,null,null,null,null,null,null,null,null,null,null,null,null,null,null,null,null,null,21,"","",null,{"$f":"IFERROR(INDEX(Y$39:Y$69,AD59,COLUMNS(AF59:AF59)),\"\")","v":""},null,null,"","",null,null,"",""]
[null,null,null,null,null,null,null,null,null,null,null,null,null,null,null,null,null,null,null,null,null,null,null,"N2","Benzinas",{"$f":"AR12","v":5.1000000000000004E-3},null,22,"","",null,{"$f":"IFERROR(INDEX(Y$39:Y$69,AD60,COLUMNS(AF60:AF60)),\"\")","v":""},null,null,"","",null,null,"",""]
[null,null,null,null,null,null,null,null,null,null,null,null,null,null,null,null,null,null,null,null,null,null,null,"N2","Suskystintos naftos dujos",{"$f":"AR14","v":7.9000000000000008E-3},null,23,"","",null,{"$f":"IFERROR(INDEX(Y$39:Y$69,AD61,COLUMNS(AF61:AF61)),\"\")","v":""},null,null,"","",null,null,"",""]
[null,null,null,null,null,null,null,null,null,null,null,null,null,null,null,null,null,null,null,null,null,null,null,"N2","Dyzelinas",{"$f":"AR13","v":9.7999999999999997E-3},null,24,"","",null,{"$f":"IFERROR(INDEX(Y$39:Y$69,AD62,COLUMNS(AF62:AF62)),\"\")","v":""},null,null,"","",null,null,"",""]
[null,null,null,null,null,null,null,null,null,null,null,null,null,null,null,null,null,null,null,null,null,null,null,"N2","Elektra",0,null,25,"","",null,{"$f":"IFERROR(INDEX(Y$39:Y$69,AD63,COLUMNS(AF63:AF63)),\"\")","v":""},null,null,"","",null,null,"",""]
[null,null,null,null,null,null,null,null,null,null,null,null,null,null,null,null,null,null,null,null,null,null,null,"N2","Vid. taršus automobilis",{"$f":"AR15","v":9.4999999999999998E-3},null,26,"","",null,{"$f":"IFERROR(INDEX(Y$39:Y$69,AD64,COLUMNS(AF64:AF64)),\"\")","v":""},null,null,"","",null,null,"",""]
[null,null,null,null,null,null,null,null,null,null,null,null,null,null,null,null,null,null,null,null,null,null,null,null,null,null,null,27,"","",null,{"$f":"IFERROR(INDEX(Y$39:Y$69,AD65,COLUMNS(AF65:AF65)),\"\")","v":""},null,null,"","",null,null,"",""]
[null,null,null,null,null,null,null,null,null,null,null,null,null,null,null,null,null,null,null,null,null,null,null,"N3","Dyzelinas",{"$f":"AR16","v":2.1700000000000001E-2},null,28,"","",null,{"$f":"IFERROR(INDEX(Y$39:Y$69,AD66,COLUMNS(AF66:AF66)),\"\")","v":""},null,null,"","",null,null,"",""]
[null,null,null,null,null,null,null,null,null,null,null,null,null,null,null,null,null,null,null,null,null,null,null,"N3","Elektra",0,null,29,"","",null,{"$f":"IFERROR(INDEX(Y$39:Y$69,AD67,COLUMNS(AF67:AF67)),\"\")","v":""},null,null,"","",null,null,"",""]
[null,null,null,null,null,null,null,null,null,null,null,null,null,null,null,null,null,null,null,null,null,null,null,null,null,{"$f":"AR16","v":2.1700000000000001E-2},null,30,"","",null,{"$f":"IFERROR(INDEX(Y$39:Y$69,AD68,COLUMNS(AF68:AF68)),\"\")","v":""},null,null,"","",null,null,"",""]
[null,null,null,null,null,null,null,null,null,null,null,null,null,null,null,null,null,null,null,null,null,null,null,null,null,null,null,31,"","",null,{"$f":"IFERROR(INDEX(Y$39:Y$69,AD69,COLUMNS(AF69:AF69)),\"\")","v":""},null,null,"","",null,null,"",""]
[]
[null,null,null,null,null,null,null,null,null,null,null,null,null,null,null,null,null,null,null,null,null,null,2025,"Duomenys \"helper\" stulpeliams",null,null,"Helper stulpeliai",null,null,null,null,"Degalų rušies dropdown'ui. Pagal H3 stulpelį suranda kokios kuro rūšis aktualios TP klasei"]
[null,null,null,null,null,null,null,null,null,null,null,null,null,null,null,null,null,null,null,null,null,null,"I","Priemonės tipas","Kuro tipas","kt CO2 eq. per metus",null,"H1","H2","H3",null,"Dropdown 2",null,null,"H2 for old vehicle CO2 eq. value","H3 for CO2 eq. value",null,null,"H2 for new vehicle CO2 value"]
[null,null,null,null,null,null,null,null,null,null,null,null,null,null,null,null,null,null,null,null,null,null,null,"M1","Benzinas",{"$f":"AS3","v":1.5E-3},null,1,{"$f":"IF(X73=J$12,AB73,\"\")","v":""},{"$f":"IFERROR(SMALL(AC$73:AC$103,AB73),\"\")","v":22},null,{"$f":"IFERROR(INDEX(Y$73:Y$103,AD73,COLUMNS(AF73:AF73)),\"\")","v":"Benzinas"},null,null,{"$f":"IF(AND(J$12=X73,Y73=J$14),AB73,\"\")","v":""},{"$f":"IFERROR(SMALL(AI$73:AI$103,AB73),\"\")","v":24},null,null,{"$f":"IF(AND(J$12=X73,Y73=J$18),AB73,\"\")","v":""},{"$f":"IFERROR(SMALL(AM$73:AM$103,AB73),\"\")","v":23}]
[null,null,null,null,null,null,null,null,null,null,null,null,null,null,null,null,null,null,null,null,null,null,null,"M1","Suskystintos naftos dujos",{"$f":"AS5","v":2.7000000000000001E-3},null,2,"",23,null,{"$f":"IFERROR(INDEX(Y$73:Y$103,AD74,COLUMNS(AF74:AF74)),\"\")","v":"Suskystintos naftos dujos"},null,null,"","",null,null,"",""]
[null,null,null,null,null,null,null,null,null,null,null,null,null,null,null,null,null,null,null,null,null,null,null,"M1","Benzinas/Elektra (hibridiniai)",{"$f":"AS6","v":2.8999999999999998E-3},null,3,"",24,null,{"$f":"IFERROR(INDEX(Y$73:Y$103,AD75,COLUMNS(AF75:AF75)),\"\")","v":"Dyzelinas"},null,null,"","",null,null,"",""]
[null,null,null,null,null,null,null,null,null,null,null,null,null,null,null,null,null,null,null,null,null,null,null,"M1","Dyzelinas",{"$f":"AS4","v":1.9E-3},null,4,"",25,null,{"$f":"IFERROR(INDEX(Y$73:Y$103,AD76,COLUMNS(AF76:AF76)),\"\")","v":"Elektra"},null,null,"","",null,null,"",""]
[null,null,null,null,null,null,null,null,null,null,null,null,null,null,null,null,null,null,null,null,null,null,null,"M1","Elektra",0,null,5,"",26,null,{"$f":"IFERROR(INDEX(Y$73:Y$103,AD77,COLUMNS(AF77:AF77)),\"\")","v":"Vid. taršus automobilis"},null,null,"","",null,null,"",""]
[null,null,null,null,null,null,null,null,null,null,null,null,null,null,null,null,null,null,null,null,null,null,null,"M1","Vid. taršus automobilis",{"$f":"AS7","v":1.9E-3},null,6,"","",null,{"$f":"IFERROR(INDEX(Y$73:Y$103,AD78,COLUMNS(AF78:AF78)),\"\")","v":""},null,null,"","",null,null,"",""]
[null,null,null,null,null,null,null,null,null,null,null,null,null,null,null,null,null,null,null,null,null,null,null,null,null,null,null,7,"","",null,{"$f":"IFERROR(INDEX(Y$73:Y$103,AD79,COLUMNS(AF79:AF79)),\"\")","v":""},null,null,"","",null,null,"",""]
[null,null,null,null,null,null,null,null,null,null,null,null,null,null,null,null,null,null,null,null,null,null,null,"M2","Dyzelinas",{"$f":"AS17","v":1.5599999999999999E-2},null,8,"","",null,{"$f":"IFERROR(INDEX(Y$73:Y$103,AD80,COLUMNS(AF80:AF80)),\"\")","v":""},null,null,"","",null,null,"",""]
[null,null,null,null,null,null,null,null,null,null,null,null,null,null,null,null,null,null,null,null,null,null,null,"M2","Elektra",0,null,9,"","",null,{"$f":"IFERROR(INDEX(Y$73:Y$103,AD81,COLUMNS(AF81:AF81)),\"\")","v":""},null,null,"","",null,null,"",""]
[null,null,null,null,null,null,null,null,null,null,null,null,null,null,null,null,null,null,null,null,null,null,null,null,null,{"$f":"AS17","v":1.5599999999999999E-2},null,10,"","",null,{"$f":"IFERROR(INDEX(Y$73:Y$103,AD82,COLUMNS(AF82:AF82)),\"\")","v":""},null,null,"","",null,null,"",""]
[null,null,null,null,null,null,null,null,null,null,null,null,null,null,null,null,null,null,null,null,null,null,null,null,null,null,null,11,"","",null,{"$f":"IFERROR(INDEX(Y$73:Y$103,AD83,COLUMNS(AF83:AF83)),\"\")","v":""},null,null,"","",null,null,"",""]
[null,null,null,null,null,null,null,null,null,null,null,null,null,null,null,null,null,null,null,null,null,null,null,"M3","Dyzelinas",{"$f":"AS18","v":8.8499999999999995E-2},null,12,"","",null,{"$f":"IFERROR(INDEX(Y$73:Y$103,AD84,COLUMNS(AF84:AF84)),\"\")","v":""},null,null,"","",null,null,"",""]
[null,null,null,null,null,null,null,null,null,null,null,null,null,null,null,null,null,null,null,null,null,null,null,"M3","Elektra",0,null,13,"","",null,{"$f":"IFERROR(INDEX(Y$73:Y$103,AD85,COLUMNS(AF85:AF85)),\"\")","v":""},null,null,"","",null,null,"",""]
[null,null,null,null,null,null,null,null,null,null,null,null,null,null,null,null,null,null,null,null,null,null,null,null,null,{"$f":"AS18","v":8.8499999999999995E-2},null,14,"","",null,{"$f":"IFERROR(INDEX(Y$73:Y$103,AD86,COLUMNS(AF86:AF86)),\"\")","v":""},null,null,"","",null,null,"",""]
[null,null,null,null,null,null,null,null,null,null,null,null,null,null,null,null,null,null,null,null,null,null,null,null,null,null,null,15,"","",null,{"$f":"IFERROR(INDEX(Y$73:Y$103,AD87,COLUMNS(AF87:AF87)),\"\")","v":""},null,null,"","",null,null,"",""]
[null,null,null,null,null,null,null,null,null,null,null,null,null,null,null,null,null,null,null,null,null,null,null,"N1","Benzinas",{"$f":"AS8","v":3.5000000000000001E-3},null,16,"","",null,{"$f":"IFERROR(INDEX(Y$73:Y$103,AD88,COLUMNS(AF88:AF88)),\"\")","v":""},null,null,"","",null,null,"",""]
[null,null,null,null,null,null,null,null,null,null,null,null,null,null,null,null,null,null,null,null,null,null,null,"N1","Suskystintos naftos dujos",{"$f":"AS10","v":4.5999999999999999E-3},null,17,"","",null,{"$f":"IFERROR(INDEX(Y$73:Y$103,AD89,COLUMNS(AF89:AF89)),\"\")","v":""},null,null,"","",null,null,"",""]
[null,null,null,null,null,null,null,null,null,null,null,null,null,null,null,null,null,null,null,null,null,null,null,"N1","Dyzelinas",{"$f":"AS9","v":3.5000000000000001E-3},null,18,"","",null,{"$f":"IFERROR(INDEX(Y$73:Y$103,AD90,COLUMNS(AF90:AF90)),\"\")","v":""},null,null,"","",null,null,"",""]
[null,null,null,null,null,null,null,null,null,null,null,null,null,null,null,null,null,null,null,null,null,null,null,"N1","Elektra",0,null,19,"","",null,{"$f":"IFERROR(INDEX(Y$73:Y$103,AD91,COLUMNS(AF91:AF91)),\"\")","v":""},null,null,"","",null,null,"",""]
[null,null,null,null,null,null,null,null,null,null,null,null,null,null,null,null,null,null,null,null,null,null,null,"N1","Vid. taršus automobilis",{"$f":"AS11","v":3.5000000000000001E-3},null,20,"","",null,{"$f":"IFERROR(INDEX(Y$73:Y$103,AD92,COLUMNS(AF92:AF92)),\"\")","v":""},null,null,"","",null,null,"",""]
[null,null,null,null,null,null,null,null,null,null,null,null,null,null,null,null,null,null,null,null,null,null,null,null,null,null,null,21,"","",null,{"$f":"IFERROR(INDEX(Y$73:Y$103,AD93,COLUMNS(AF93:AF93)),\"\")","v":""},null,null,"","",null,null,"",""]
[null,null,null,null,null,null,null,null,null,null,null,null,null,null,null,null,null,null,null,null,null,null,null,"N2","Benzinas",{"$f":"AS12","v":5.1000000000000004E-3},null,22,22,"",null,{"$f":"IFERROR(INDEX(Y$73:Y$103,AD94,COLUMNS(AF94:AF94)),\"\")","v":""},null,null,"","",null,null,"",""]
[null,null,null,null,null,null,null,null,null,null,null,null,null,null,null,null,null,null,null,null,null,null,null,"N2","Suskystintos naftos dujos",{"$f":"AS14","v":7.9000000000000008E-3},null,23,23,"",null,{"$f":"IFERROR(INDEX(Y$73:Y$103,AD95,COLUMNS(AF95:AF95)),\"\")","v":""},null,null,"","",null,null,23,""]
[null,null,null,null,null,null,null,null,null,null,null,null,null,null,null,null,null,null,null,null,null,null,null,"N2","Dyzelinas",{"$f":"AS13","v":9.7999999999999997E-3},null,24,24,"",null,{"$f":"IFERROR(INDEX(Y$73:Y$103,AD96,COLUMNS(AF96:AF96)),\"\")","v":""},null,null,24,"",null,null,"",""]
[null,null,null,null,null,null,null,null,null,null,null,null,null,null,null,null,null,null,null,null,null,null,null,"N2","Elektra",0,null,25,25,"",null,{"$f":"IFERROR(INDEX(Y$73:Y$103,AD97,COLUMNS(AF97:AF97)),\"\")","v":""},null,null,"","",null,null,"",""]
[null,null,null,null,null,null,null,null,null,null,null,null,null,null,null,null,null,null,null,null,null,null,null,"N2","Vid. taršus automobilis",{"$f":"AS15","v":9.4999999999999998E-3},null,26,26,"",null,{"$f":"IFERROR(INDEX(Y$73:Y$103,AD98,COLUMNS(AF98:AF98)),\"\")","v":""},null,null,"","",null,null,"",""]
[null,null,null,null,null,null,null,null,null,null,null,null,null,null,null,null,null,null,null,null,null,null,null,null,null,null,null,27,"","",null,{"$f":"IFERROR(INDEX(Y$73:Y$103,AD99,COLUMNS(AF99:AF99)),\"\")","v":""},null,null,"","",null,null,"",""]
[null,null,null,null,null,null,null,null,null,null,null,null,null,null,null,null,null,null,null,null,null,null,null,"N3","Dyzelinas",{"$f":"AS16","v":2.1100000000000001E-2},null,28,"","",null,{"$f":"IFERROR(INDEX(Y$73:Y$103,AD100,COLUMNS(AF100:AF100)),\"\")","v":""},null,null,"","",null,null,"",""]
[null,null,null,null,null,null,null,null,null,null,null,null,null,null,null,null,null,null,null,null,null,null,null,"N3","Elektra",0,null,29,"","",null,{"$f":"IFERROR(INDEX(Y$73:Y$103,AD101,COLUMNS(AF101:AF101)),\"\")","v":""},null,null,"","",null,null,"",""]
[null,null,null,null,null,null,null,null,null,null,null,null,null,null,null,null,null,null,null,null,null,null,null,null,null,{"$f":"AS16","v":2.1100000000000001E-2},null,30,"","",null,{"$f":"IFERROR(INDEX(Y$73:Y$103,AD102,COLUMNS(AF102:AF102)),\"\")","v":""},null,null,"","",null,null,"",""]
[null,null,null,null,null,null,null,null,null,null,null,null,null,null,null,null,null,null,null,null,null,null,null,null,null,null,null,31,"","",null,{"$f":"IFERROR(INDEX(Y$73:Y$103,AD103,COLUMNS(AF103:AF103)),\"\")","v":""},null,null,"","",null,null,"",""]
[]
[null,null,null,null,null,null,null,null,null,null,null,null,null,null,null,null,null,null,null,null,null,null,2026,"Duomenys \"helper\" stulpeliams",null,null,"Helper stulpeliai",null,null,null,null,"Degalų rušies dropdown'ui. Pagal H3 stulpelį suranda kokios kuro rūšis aktualios TP klasei"]
[null,null,null,null,null,null,null,null,null,null,null,null,null,null,null,null,null,null,null,null,null,null,"K","Priemonės tipas","Kuro tipas","kt CO2 eq. per metus",null,"H1","H2","H3",null,"Dropdown 2",null,null,"H2 for old vehicle CO2 eq. value","H3 for CO2 eq. value",null,null,"H2 for new vehicle CO2 value"]
[null,null,null,null,null,null,null,null,null,null,null,null,null,null,null,null,null,null,null,null,null,null,null,"M1","Benzinas",{"$f":"AT3","v":1.5E-3},null,1,{"$f":"IF(X107=K$12,AB107,\"\")","v":""},{"$f":"IFERROR(SMALL(AC$107:AC$137,AB107),\"\")","v":22},null,{"$f":"IFERROR(INDEX(Y$107:Y$137,AD107,COLUMNS(AF107:AF107)),\"\")","v":"Benzinas"},null,null,{"$f":"IF(AND(K$12=X107,Y107=K$14),AB107,\"\")","v":""},{"$f":"IFERROR(SMALL(AI$107:AI$137,AB107),\"\")","v":24},null,null,{"$f":"IF(AND(K$12=X107,Y107=K$18),AB107,\"\")","v":""},{"$f":"IFERROR(SMALL(AM$107:AM$137,AB107),\"\")","v":23}]
[null,null,null,null,null,null,null,null,null,null,null,null,null,null,null,null,null,null,null,null,null,null,null,"M1","Suskystintos naftos dujos",{"$f":"AT5","v":2.7000000000000001E-3},null,2,"",23,null,{"$f":"IFERROR(INDEX(Y$107:Y$137,AD108,COLUMNS(AF108:AF108)),\"\")","v":"Suskystintos naftos dujos"},null,null,"","",null,null,"",""]
[null,null,null,null,null,null,null,null,null,null,null,null,null,null,null,null,null,null,null,null,null,null,null,"M1","Benzinas/Elektra (hibridiniai)",{"$f":"AT6","v":2.8999999999999998E-3},null,3,"",24,null,{"$f":"IFERROR(INDEX(Y$107:Y$137,AD109,COLUMNS(AF109:AF109)),\"\")","v":"Dyzelinas"},null,null,"","",null,null,"",""]
[null,null,null,null,null,null,null,null,null,null,null,null,null,null,null,null,null,null,null,null,null,null,null,"M1","Dyzelinas",{"$f":"AT4","v":1.8E-3},null,4,"",25,null,{"$f":"IFERROR(INDEX(Y$107:Y$137,AD110,COLUMNS(AF110:AF110)),\"\")","v":"Elektra"},null,null,"","",null,null,"",""]
[null,null,null,null,null,null,null,null,null,null,null,null,null,null,null,null,null,null,null,null,null,null,null,"M1","Elektra",0,null,5,"",26,null,{"$f":"IFERROR(INDEX(Y$107:Y$137,AD111,COLUMNS(AF111:AF111)),\"\")","v":"Vid. taršus automobilis"},null,null,"","",null,null,"",""]
[null,null,null,null,null,null,null,null,null,null,null,null,null,null,null,null,null,null,null,null,null,null,null,"M1","Vid. taršus automobilis",{"$f":"AT7","v":1.8E-3},null,6,"","",null,{"$f":"IFERROR(INDEX(Y$107:Y$137,AD112,COLUMNS(AF112:AF112)),\"\")","v":""},null,null,"","",null,null,"",""]
[null,null,null,null,null,null,null,null,null,null,null,null,null,null,null,null,null,null,null,null,null,null,null,null,null,null,null,7,"","",null,{"$f":"IFERROR(INDEX(Y$107:Y$137,AD113,COLUMNS(AF113:AF113)),\"\")","v":""},null,null,"","",null,null,"",""]
[null,null,null,null,null,null,null,null,null,null,null,null,null,null,null,null,null,null,null,null,null,null,null,"M2","Dyzelinas",{"$f":"AT17","v":1.5599999999999999E-2},null,8,"","",null,{"$f":"IFERROR(INDEX(Y$107:Y$137,AD114,COLUMNS(AF114:AF114)),\"\")","v":""},null,null,"","",null,null,"",""]
[null,null,null,null,null,null,null,null,null,null,null,null,null,null,null,null,null,null,null,null,null,null,null,"M2","Elektra",0,null,9,"","",null,{"$f":"IFERROR(INDEX(Y$107:Y$137,AD115,COLUMNS(AF115:AF115)),\"\")","v":""},null,null,"","",null,null,"",""]
[null,null,null,null,null,null,null,null,null,null,null,null,null,null,null,null,null,null,null,null,null,null,null,null,null,{"$f":"AT17","v":1.5599999999999999E-2},null,10,"","",null,{"$f":"IFERROR(INDEX(Y$107:Y$137,AD116,COLUMNS(AF116:AF116)),\"\")","v":""},null,null,"","",null,null,"",""]
[null,null,null,null,null,null,null,null,null,null,null,null,null,null,null,null,null,null,null,null,null,null,null,null,null,null,null,11,"","",null,{"$f":"IFERROR(INDEX(Y$107:Y$137,AD117,COLUMNS(AF117:AF117)),\"\")","v":""},null,null,"","",null,null,"",""]
[null,null,null,null,null,null,null,null,null,null,null,null,null,null,null,null,null,null,null,null,null,null,null,"M3","Dyzelinas",{"$f":"AT18","v":8.8499999999999995E-2},null,12,"","",null,{"$f":"IFERROR(INDEX(Y$107:Y$137,AD118,COLUMNS(AF118:AF118)),\"\")","v":""},null,null,"","",null,null,"",""]
[null,null,null,null,null,null,null,null,null,null,null,null,null,null,null,null,null,null,null,null,null,null,null,"M3","Elektra",0,null,13,"","",null,{"$f":"IFERROR(INDEX(Y$107:Y$137,AD119,COLUMNS(AF119:AF119)),\"\")","v":""},null,null,"","",null,null,"",""]
[null,null,null,null,null,null,null,null,null,null,null,null,null,null,null,null,null,null,null,null,null,null,null,null,null,{"$f":"AT18","v":8.8499999999999995E-2},null,14,"","",null,{"$f":"IFERROR(INDEX(Y$107:Y$137,AD120,COLUMNS(AF120:AF120)),\"\")","v":""},null,null,"","",null,null,"",""]
[null,null,null,null,null,null,null,null,null,null,null,null,null,null,null,null,null,null,null,null,null,null,null,null,null,null,null,15,"","",null,{"$f":"IFERROR(INDEX(Y$107:Y$137,AD121,COLUMNS(AF121:AF121)),\"\")","v":""},null,null,"","",null,null,"",""]
[null,null,null,null,null,null,null,null,null,null,null,null,null,null,null,null,null,null,null,null,null,null,null,"N1","Benzinas",{"$f":"AT8","v":3.5000000000000001E-3},null,16,"","",null,{"$f":"IFERROR(INDEX(Y$107:Y$137,AD122,COLUMNS(AF122:AF122)),\"\")","v":""},null,null,"","",null,null,"",""]
[null,null,null,null,null,null,null,null,null,null,null,null,null,null,null,null,null,null,null,null,null,null,null,"N1","Suskystintos naftos dujos",{"$f":"AT10","v":4.5999999999999999E-3},null,17,"","",null,{"$f":"IFERROR(INDEX(Y$107:Y$137,AD123,COLUMNS(AF123:AF123)),\"\")","v":""},null,null,"","",null,null,"",""]
[null,null,null,null,null,null,null,null,null,null,null,null,null,null,null,null,null,null,null,null,null,null,null,"N1","Dyzelinas",{"$f":"AT9","v":3.3999999999999998E-3},null,18,"","",null,{"$f":"IFERROR(INDEX(Y$107:Y$137,AD124,COLUMNS(AF124:AF124)),\"\")","v":""},null,null,"","",null,null,"",""]
[null,null,null,null,null,null,null,null,null,null,null,null,null,null,null,null,null,null,null,null,null,null,null,"N1","Elektra",0,null,19,"","",null,{"$f":"IFERROR(INDEX(Y$107:Y$137,AD125,COLUMNS(AF125:AF125)),\"\")","v":""},null,null,"","",null,null,"",""]
[null,null,null,null,null,null,null,null,null,null,null,null,null,null,null,null,null,null,null,null,null,null,null,"N1","Vid. taršus automobilis",{"$f":"AT11","v":3.3999999999999998E-3},null,20,"","",null,{"$f":"IFERROR(INDEX(Y$107:Y$137,AD126,COLUMNS(AF126:AF126)),\"\")","v":""},null,null,"","",null,null,"",""]
[null,null,null,null,null,null,null,null,null,null,null,null,null,null,null,null,null,null,null,null,null,null,null,null,null,null,null,21,"","",null,{"$f":"IFERROR(INDEX(Y$107:Y$137,AD127,COLUMNS(AF127:AF127)),\"\")","v":""},null,null,"","",null,null,"",""]
[null,null,null,null,null,null,null,null,null,null,null,null,null,null,null,null,null,null,null,null,null,null,null,"N2","Benzinas",{"$f":"AT12","v":5.1000000000000004E-3},null,22,22,"",null,{"$f":"IFERROR(INDEX(Y$107:Y$137,AD128,COLUMNS(AF128:AF128)),\"\")","v":""},null,null,"","",null,null,"",""]
[null,null,null,null,null,null,null,null,null,null,null,null,null,null,null,null,null,null,null,null,null,null,null,"N2","Suskystintos naftos dujos",{"$f":"AT14","v":7.9000000000000008E-3},null,23,23,"",null,{"$f":"IFERROR(INDEX(Y$107:Y$137,AD129,COLUMNS(AF129:AF129)),\"\")","v":""},null,null,"","",null,null,23,""]
[null,null,null,null,null,null,null,null,null,null,null,null,null,null,null,null,null,null,null,null,null,null,null,"N2","Dyzelinas",{"$f":"AT13","v":9.7999999999999997E-3},null,24,24,"",null,{"$f":"IFERROR(INDEX(Y$107:Y$137,AD130,COLUMNS(AF130:AF130)),\"\")","v":""},null,null,24,"",null,null,"",""]
[null,null,null,null,null,null,null,null,null,null,null,null,null,null,null,null,null,null,null,null,null,null,null,"N2","Elektra",0,null,25,25,"",null,{"$f":"IFERROR(INDEX(Y$107:Y$137,AD131,COLUMNS(AF131:AF131)),\"\")","v":""},null,null,"","",null,null,"",""]
[null,null,null,null,null,null,null,null,null,null,null,null,null,null,null,null,null,null,null,null,null,null,null,"N2","Vid. taršus automobilis",{"$f":"AT15","v":9.4999999999999998E-3},null,26,26,"",null,{"$f":"IFERROR(INDEX(Y$107:Y$137,AD132,COLUMNS(AF132:AF132)),\"\")","v":""},null,null,"","",null,null,"",""]
[null,null,null,null,null,null,null,null,null,null,null,null,null,null,null,null,null,null,null,null,null,null,null,null,null,null,null,27,"","",null,{"$f":"IFERROR(INDEX(Y$107:Y$137,AD133,COLUMNS(AF133:AF133)),\"\")","v":""},null,null,"","",null,null,"",""]
[null,null,null,null,null,null,null,null,null,null,null,null,null,null,null,null,null,null,null,null,null,null,null,"N3","Dyzelinas",{"$f":"AT16","v":1.9800000000000002E-2},null,28,"","",null,{"$f":"IFERROR(INDEX(Y$107:Y$137,AD134,COLUMNS(AF134:AF134)),\"\")","v":""},null,null,"","",null,null,"",""]
[null,null,null,null,null,null,null,null,null,null,null,null,null,null,null,null,null,null,null,null,null,null,null,"N3","Elektra",0,null,29,"","",null,{"$f":"IFERROR(INDEX(Y$107:Y$137,AD135,COLUMNS(AF135:AF135)),\"\")","v":""},null,null,"","",null,null,"",""]
[null,null,null,null,null,null,null,null,null,null,null,null,null,null,null,null,null,null,null,null,null,null,null,null,null,{"$f":"AT16","v":1.9800000000000002E-2},null,30,"","",null,{"$f":"IFERROR(INDEX(Y$107:Y$137,AD136,COLUMNS(AF136:AF136)),\"\")","v":""},null,null,"","",null,null,"",""]
[null,null,null,null,null,null,null,null,null,null,null,null,null,null,null,null,null,null,null,null,null,null,null,null,null,null,null,31,{"$f":"IF(X137=J$12,AB137,\"\")","v":""},"",null,{"$f":"IFERROR(INDEX(Y$107:Y$137,AD137,COLUMNS(AF137:AF137)),\"\")","v":""},null,null,"","",null,null,"",""]
[]
[null,null,null,null,null,null,null,null,null,null,null,null,null,null,null,null,null,null,null,null,null,null,2027,"Duomenys \"helper\" stulpeliams",null,null,"Helper stulpeliai",null,null,null,null,"Degalų rušies dropdown'ui. Pagal H3 stulpelį suranda kokios kuro rūšis aktualios TP klasei"]
[null,null,null,null,null,null,null,null,null,null,null,null,null,null,null,null,null,null,null,null,null,null,"M","Priemonės tipas","Kuro tipas","kt CO2 eq. per metus",null,"H1","H2","H3",null,"Dropdown 2",null,null,"H2 for old vehicle CO2 eq. value","H3 for CO2 eq. value",null,null,"H2 for new vehicle CO2 value"]
[null,null,null,null,null,null,null,null,null,null,null,null,null,null,null,null,null,null,null,null,null,null,null,"M1","Benzinas",{"$f":"AU3","v":1.5E-3},null,1,{"$f":"IF(X141=L$12,AB141,\"\")","v":""},{"$f":"IFERROR(SMALL(AC$141:AC$171,AB141),\"\")","v":22},null,{"$f":"IFERROR(INDEX(Y$141:Y$171,AD141,COLUMNS(AF141:AF141)),\"\")","v":"Benzinas"},null,null,{"$f":"IF(AND(L$12=X141,Y141=L$14),AB141,\"\")","v":""},{"$f":"IFERROR(SMALL(AI$141:AI$171,AB141),\"\")","v":24},null,null,{"$f":"IF(AND(L$12=X141,Y141=L$18),AB141,\"\")","v":""},{"$f":"IFERROR(SMALL(AM$141:AM$171,AB141),\"\")","v":23}]
[null,null,null,null,null,null,null,null,null,null,null,null,null,null,null,null,null,null,null,null,null,null,null,"M1","Suskystintos naftos dujos",{"$f":"AU5","v":2.7000000000000001E-3},null,2,"",23,null,{"$f":"IFERROR(INDEX(Y$141:Y$171,AD142,COLUMNS(AF142:AF142)),\"\")","v":"Suskystintos naftos dujos"},null,null,"","",null,null,"",""]
[null,null,null,null,null,null,null,null,null,null,null,null,null,null,null,null,null,null,null,null,null,null,null,"M1","Benzinas/Elektra (hibridiniai)",{"$f":"AU6","v":2.8999999999999998E-3},null,3,"",24,null,{"$f":"IFERROR(INDEX(Y$141:Y$171,AD143,COLUMNS(AF143:AF143)),\"\")","v":"Dyzelinas"},null,null,"","",null,null,"",""]
[null,null,null,null,null,null,null,null,null,null,null,null,null,null,null,null,null,null,null,null,null,null,null,"M1","Dyzelinas",{"$f":"AU4","v":1.8E-3},null,4,"",25,null,{"$f":"IFERROR(INDEX(Y$141:Y$171,AD144,COLUMNS(AF144:AF144)),\"\")","v":"Elektra"},null,null,"","",null,null,"",""]
[null,null,null,null,null,null,null,null,null,null,null,null,null,null,null,null,null,null,null,null,null,null,null,"M1","Elektra",0,null,5,"",26,null,{"$f":"IFERROR(INDEX(Y$141:Y$171,AD145,COLUMNS(AF145:AF145)),\"\")","v":"Vid. taršus automobilis"},null,null,"","",null,null,"",""]
[null,null,null,null,null,null,null,null,null,null,null,null,null,null,null,null,null,null,null,null,null,null,null,"M1","Vid. taršus automobilis",{"$f":"AU7","v":1.8E-3},null,6,"","",null,{"$f":"IFERROR(INDEX(Y$141:Y$171,AD146,COLUMNS(AF146:AF146)),\"\")","v":""},null,null,"","",null,null,"",""]
[null,null,null,null,null,null,null,null,null,null,null,null,null,null,null,null,null,null,null,null,null,null,null,null,null,null,null,7,"","",null,{"$f":"IFERROR(INDEX(Y$141:Y$171,AD147,COLUMNS(AF147:AF147)),\"\")","v":""},null,null,"","",null,null,"",""]
[null,null,null,null,null,null,null,null,null,null,null,null,null,null,null,null,null,null,null,null,null,null,null,"M2","Dyzelinas",{"$f":"AU17","v":1.5599999999999999E-2},null,8,"","",null,{"$f":"IFERROR(INDEX(Y$141:Y$171,AD148,COLUMNS(AF148:AF148)),\"\")","v":""},null,null,"","",null,null,"",""]
[null,null,null,null,null,null,null,null,null,null,null,null,null,null,null,null,null,null,null,null,null,null,null,"M2","Elektra",0,null,9,"","",null,{"$f":"IFERROR(INDEX(Y$141:Y$171,AD149,COLUMNS(AF149:AF149)),\"\")","v":""},null,null,"","",null,null,"",""]
[null,null,null,null,null,null,null,null,null,null,null,null,null,null,null,null,null,null,null,null,null,null,null,null,null,2.8899999999999999E-2,null,10,"","",null,{"$f":"IFERROR(INDEX(Y$141:Y$171,AD150,COLUMNS(AF150:AF150)),\"\")","v":""},null,null,"","",null,null,"",""]
[null,null,null,null,null,null,null,null,null,null,null,null,null,null,null,null,null,null,null,null,null,null,null,null,null,null,null,11,"","",null,{"$f":"IFERROR(INDEX(Y$141:Y$171,AD151,COLUMNS(AF151:AF151)),\"\")","v":""},null,null,"","",null,null,"",""]
[null,null,null,null,null,null,null,null,null,null,null,null,null,null,null,null,null,null,null,null,null,null,null,"M3","Dyzelinas",{"$f":"AU18","v":8.8499999999999995E-2},null,12,"","",null,{"$f":"IFERROR(INDEX(Y$141:Y$171,AD152,COLUMNS(AF152:AF152)),\"\")","v":""},null,null,"","",null,null,"",""]
[null,null,null,null,null,null,null,null,null,null,null,null,null,null,null,null,null,null,null,null,null,null,null,"M3","Elektra",0,null,13,"","",null,{"$f":"IFERROR(INDEX(Y$141:Y$171,AD153,COLUMNS(AF153:AF153)),\"\")","v":""},null,null,"","",null,null,"",""]
[null,null,null,null,null,null,null,null,null,null,null,null,null,null,null,null,null,null,null,null,null,null,null,null,null,{"$f":"AU18","v":8.8499999999999995E-2},null,14,"","",null,{"$f":"IFERROR(INDEX(Y$141:Y$171,AD154,COLUMNS(AF154:AF154)),\"\")","v":""},null,null,"","",null,null,"",""]
[null,null,null,null,null,null,null,null,null,null,null,null,null,null,null,null,null,null,null,null,null,null,null,null,null,null,null,15,"","",null,{"$f":"IFERROR(INDEX(Y$141:Y$171,AD155,COLUMNS(AF155:AF155)),\"\")","v":""},null,null,"","",null,null,"",""]
[null,null,null,null,null,null,null,null,null,null,null,null,null,null,null,null,null,null,null,null,null,null,null,"N1","Benzinas",{"$f":"AU8","v":3.3999999999999998E-3},null,16,"","",null,{"$f":"IFERROR(INDEX(Y$141:Y$171,AD156,COLUMNS(AF156:AF156)),\"\")","v":""},null,null,"","",null,null,"",""]
[null,null,null,null,null,null,null,null,null,null,null,null,null,null,null,null,null,null,null,null,null,null,null,"N1","Suskystintos naftos dujos",{"$f":"AU10","v":4.5999999999999999E-3},null,17,"","",null,{"$f":"IFERROR(INDEX(Y$141:Y$171,AD157,COLUMNS(AF157:AF157)),\"\")","v":""},null,null,"","",null,null,"",""]
[null,null,null,null,null,null,null,null,null,null,null,null,null,null,null,null,null,null,null,null,null,null,null,"N1","Dyzelinas",{"$f":"AU9","v":3.3E-3},null,18,"","",null,{"$f":"IFERROR(INDEX(Y$141:Y$171,AD158,COLUMNS(AF158:AF158)),\"\")","v":""},null,null,"","",null,null,"",""]
[null,null,null,null,null,null,null,null,null,null,null,null,null,null,null,null,null,null,null,null,null,null,null,"N1","Elektra",0,null,19,"","",null,{"$f":"IFERROR(INDEX(Y$141:Y$171,AD159,COLUMNS(AF159:AF159)),\"\")","v":""},null,null,"","",null,null,"",""]
[null,null,null,null,null,null,null,null,null,null,null,null,null,null,null,null,null,null,null,null,null,null,null,"N1","Vid. taršus automobilis",{"$f":"AU11","v":3.3E-3},null,20,"","",null,{"$f":"IFERROR(INDEX(Y$141:Y$171,AD160,COLUMNS(AF160:AF160)),\"\")","v":""},null,null,"","",null,null,"",""]
[null,null,null,null,null,null,null,null,null,null,null,null,null,null,null,null,null,null,null,null,null,null,null,null,null,null,null,21,"","",null,{"$f":"IFERROR(INDEX(Y$141:Y$171,AD161,COLUMNS(AF161:AF161)),\"\")","v":""},null,null,"","",null,null,"",""]
[null,null,null,null,null,null,null,null,null,null,null,null,null,null,null,null,null,null,null,null,null,null,null,"N2","Benzinas",{"$f":"AU12","v":5.1000000000000004E-3},null,22,22,"",null,{"$f":"IFERROR(INDEX(Y$141:Y$171,AD162,COLUMNS(AF162:AF162)),\"\")","v":""},null,null,"","",null,null,"",""]
[null,null,null,null,null,null,null,null,null,null,null,null,null,null,null,null,null,null,null,null,null,null,null,"N2","Suskystintos naftos dujos",{"$f":"AU14","v":7.9000000000000008E-3},null,23,23,"",null,{"$f":"IFERROR(INDEX(Y$141:Y$171,AD163,COLUMNS(AF163:AF163)),\"\")","v":""},null,null,"","",null,null,23,""]
[null,null,null,null,null,null,null,null,null,null,null,null,null,null,null,null,null,null,null,null,null,null,null,"N2","Dyzelinas",{"$f":"AU13","v":9.7999999999999997E-3},null,24,24,"",null,{"$f":"IFERROR(INDEX(Y$141:Y$171,AD164,COLUMNS(AF164:AF164)),\"\")","v":""},null,null,24,"",null,null,"",""]
[null,null,null,null,null,null,null,null,null,null,null,null,null,null,null,null,null,null,null,null,null,null,null,"N2","Elektra",0,null,25,25,"",null,{"$f":"IFERROR(INDEX(Y$141:Y$171,AD165,COLUMNS(AF165:AF165)),\"\")","v":""},null,null,"","",null,null,"",""]
[null,null,null,null,null,null,null,null,null,null,null,null,null,null,null,null,null,null,null,null,null,null,null,"N2","Vid. taršus automobilis",{"$f":"AU15","v":9.4999999999999998E-3},null,26,26,"",null,{"$f":"IFERROR(INDEX(Y$141:Y$171,AD166,COLUMNS(AF166:AF166)),\"\")","v":""},null,null,"","",null,null,"",""]
[null,null,null,null,null,null,null,null,null,null,null,null,null,null,null,null,null,null,null,null,null,null,null,null,null,null,null,27,"","",null,{"$f":"IFERROR(INDEX(Y$141:Y$171,AD167,COLUMNS(AF167:AF167)),\"\")","v":""},null,null,"","",null,null,"",""]
[null,null,null,null,null,null,null,null,null,null,null,null,null,null,null,null,null,null,null,null,null,null,null,"N3","Dyzelinas",{"$f":"AU16","v":1.8700000000000001E-2},null,28,"","",null,{"$f":"IFERROR(INDEX(Y$141:Y$171,AD168,COLUMNS(AF168:AF168)),\"\")","v":""},null,null,"","",null,null,"",""]
[null,null,null,null,null,null,null,null,null,null,null,null,null,null,null,null,null,null,null,null,null,null,null,"N3","Elektra",0,null,29,"","",null,{"$f":"IFERROR(INDEX(Y$141:Y$171,AD169,COLUMNS(AF169:AF169)),\"\")","v":""},null,null,"","",null,null,"",""]
[null,null,null,null,null,null,null,null,null,null,null,null,null,null,null,null,null,null,null,null,null,null,null,null,null,{"$f":"AU16","v":1.8700000000000001E-2},null,30,"","",null,{"$f":"IFERROR(INDEX(Y$141:Y$171,AD170,COLUMNS(AF170:AF170)),\"\")","v":""},null,null,"","",null,null,"",""]
[null,null,null,null,null,null,null,null,null,null,null,null,null,null,null,null,null,null,null,null,null,null,null,null,null,null,null,31,"","",null,{"$f":"IFERROR(INDEX(Y$141:Y$171,AD171,COLUMNS(AF171:AF171)),\"\")","v":""},null,null,"","",null,null,"",""]
[]
[null,null,null,null,null,null,null,null,null,null,null,null,null,null,null,null,null,null,null,null,null,null,2028,"Duomenys \"helper\" stulpeliams",null,null,"Helper stulpeliai",null,null,null,null,"Degalų rušies dropdown'ui. Pagal H3 stulpelį suranda kokios kuro rūšis aktualios TP klasei"]
[null,null,null,null,null,null,null,null,null,null,null,null,null,null,null,null,null,null,null,null,null,null,"O","Priemonės tipas","Kuro tipas","kt CO2 eq. per metus",null,"H1","H2","H3",null,"Dropdown 2",null,null,"H2 for old vehicle CO2 eq. value","H3 for CO2 eq. value",null,null,"H2 for new vehicle CO2 value"]
[null,null,null,null,null,null,null,null,null,null,null,null,null,null,null,null,null,null,null,null,null,null,null,"M1","Benzinas",{"$f":"AV3","v":1.5E-3},null,1,{"$f":"IF(X175=M$12,AB175,\"\")","v":""},{"$f":"IFERROR(SMALL(AC$175:AC$205,AB175),\"\")","v":22},null,{"$f":"IFERROR(INDEX(Y$3:Y$31,AD175,COLUMNS(AF175:AF175)),\"\")","v":"Benzinas"},null,null,{"$f":"IF(AND(M$12=X175,Y175=M$14),AB175,\"\")","v":""},{"$f":"IFERROR(SMALL(AI$175:AI$205,AB175),\"\")","v":24},null,null,{"$f":"IF(AND(M$12=X175,Y175=M$18),AB175,\"\")","v":""},{"$f":"IFERROR(SMALL(AM$175:AM$205,AB175),\"\")","v":23}]
[null,null,null,null,null,null,null,null,null,null,null,null,null,null,null,null,null,null,null,null,null,null,null,"M1","Suskystintos naftos dujos",{"$f":"AV5","v":2.7000000000000001E-3},null,2,"",23,null,{"$f":"IFERROR(INDEX(Y$3:Y$31,AD176,COLUMNS(AF176:AF176)),\"\")","v":"Suskystintos naftos dujos"},null,null,"","",null,null,"",""]
[null,null,null,null,null,null,null,null,null,null,null,null,null,null,null,null,null,null,null,null,null,null,null,"M1","Benzinas/Elektra (hibridiniai)",{"$f":"AV6","v":2.8999999999999998E-3},null,3,"",24,null,{"$f":"IFERROR(INDEX(Y$3:Y$31,AD177,COLUMNS(AF177:AF177)),\"\")","v":"Dyzelinas"},null,null,"","",null,null,"",""]
[null,null,null,null,null,null,null,null,null,null,null,null,null,null,null,null,null,null,null,null,null,null,null,"M1","Dyzelinas",{"$f":"AV4","v":1.6999999999999999E-3},null,4,"",25,null,{"$f":"IFERROR(INDEX(Y$3:Y$31,AD178,COLUMNS(AF178:AF178)),\"\")","v":"Elektra"},null,null,"","",null,null,"",""]
[null,null,null,null,null,null,null,null,null,null,null,null,null,null,null,null,null,null,null,null,null,null,null,"M1","Elektra",0,null,5,"",26,null,{"$f":"IFERROR(INDEX(Y$3:Y$31,AD179,COLUMNS(AF179:AF179)),\"\")","v":"Vid. taršus automobilis"},null,null,"","",null,null,"",""]
[null,null,null,null,null,null,null,null,null,null,null,null,null,null,null,null,null,null,null,null,null,null,null,"M1","Vid. taršus automobilis",{"$f":"AV7","v":1.8E-3},null,6,"","",null,{"$f":"IFERROR(INDEX(Y$3:Y$31,AD180,COLUMNS(AF180:AF180)),\"\")","v":""},null,null,"","",null,null,"",""]
[null,null,null,null,null,null,null,null,null,null,null,null,null,null,null,null,null,null,null,null,null,null,null,null,null,null,null,7,"","",null,{"$f":"IFERROR(INDEX(Y$3:Y$31,AD181,COLUMNS(AF181:AF181)),\"\")","v":""},null,null,"","",null,null,"",""]
[null,null,null,null,null,null,null,null,null,null,null,null,null,null,null,null,null,null,null,null,null,null,null,"M2","Dyzelinas",{"$f":"AV17","v":1.5599999999999999E-2},null,8,"","",null,{"$f":"IFERROR(INDEX(Y$3:Y$31,AD182,COLUMNS(AF182:AF182)),\"\")","v":""},null,null,"","",null,null,"",""]
[null,null,null,null,null,null,null,null,null,null,null,null,null,null,null,null,null,null,null,null,null,null,null,"M2","Elektra",0,null,9,"","",null,{"$f":"IFERROR(INDEX(Y$3:Y$31,AD183,COLUMNS(AF183:AF183)),\"\")","v":""},null,null,"","",null,null,"",""]
[null,null,null,null,null,null,null,null,null,null,null,null,null,null,null,null,null,null,null,null,null,null,null,null,null,{"$f":"AV17","v":1.5599999999999999E-2},null,10,"","",null,{"$f":"IFERROR(INDEX(Y$3:Y$31,AD184,COLUMNS(AF184:AF184)),\"\")","v":""},null,null,"","",null,null,"",""]
[null,null,null,null,null,null,null,null,null,null,null,null,null,null,null,null,null,null,null,null,null,null,null,null,null,null,null,11,"","",null,{"$f":"IFERROR(INDEX(Y$3:Y$31,AD185,COLUMNS(AF185:AF185)),\"\")","v":""},null,null,"","",null,null,"",""]
[null,null,null,null,null,null,null,null,null,null,null,null,null,null,null,null,null,null,null,null,null,null,null,"M3","Dyzelinas",{"$f":"AV18","v":8.8499999999999995E-2},null,12,"","",null,{"$f":"IFERROR(INDEX(Y$3:Y$31,AD186,COLUMNS(AF186:AF186)),\"\")","v":""},null,null,"","",null,null,"",""]
[null,null,null,null,null,null,null,null,null,null,null,null,null,null,null,null,null,null,null,null,null,null,null,"M3","Elektra",0,null,13,"","",null,{"$f":"IFERROR(INDEX(Y$3:Y$31,AD187,COLUMNS(AF187:AF187)),\"\")","v":""},null,null,"","",null,null,"",""]
[null,null,null,null,null,null,null,null,null,null,null,null,null,null,null,null,null,null,null,null,null,null,null,null,null,{"$f":"AV18","v":8.8499999999999995E-2},null,14,"","",null,{"$f":"IFERROR(INDEX(Y$3:Y$31,AD188,COLUMNS(AF188:AF188)),\"\")","v":""},null,null,"","",null,null,"",""]
[null,null,null,null,null,null,null,null,null,null,null,null,null,null,null,null,null,null,null,null,null,null,null,null,null,null,null,15,"","",null,{"$f":"IFERROR(INDEX(Y$3:Y$31,AD189,COLUMNS(AF189:AF189)),\"\")","v":""},null,null,"","",null,null,"",""]
[null,null,null,null,null,null,null,null,null,null,null,null,null,null,null,null,null,null,null,null,null,null,null,"N1","Benzinas",{"$f":"AV8","v":3.3999999999999998E-3},null,16,"","",null,{"$f":"IFERROR(INDEX(Y$3:Y$31,AD190,COLUMNS(AF190:AF190)),\"\")","v":""},null,null,"","",null,null,"",""]
[null,null,null,null,null,null,null,null,null,null,null,null,null,null,null,null,null,null,null,null,null,null,null,"N1","Suskystintos naftos dujos",{"$f":"AV10","v":4.5999999999999999E-3},null,17,"","",null,{"$f":"IFERROR(INDEX(Y$3:Y$31,AD191,COLUMNS(AF191:AF191)),\"\")","v":""},null,null,"","",null,null,"",""]
[null,null,null,null,null,null,null,null,null,null,null,null,null,null,null,null,null,null,null,null,null,null,null,"N1","Dyzelinas",{"$f":"AV9","v":3.2000000000000002E-3},null,18,"","",null,{"$f":"IFERROR(INDEX(Y$3:Y$31,AD192,COLUMNS(AF192:AF192)),\"\")","v":""},null,null,"","",null,null,"",""]
[null,null,null,null,null,null,null,null,null,null,null,null,null,null,null,null,null,null,null,null,null,null,null,"N1","Elektra",0,null,19,"","",null,{"$f":"IFERROR(INDEX(Y$3:Y$31,AD193,COLUMNS(AF193:AF193)),\"\")","v":""},null,null,"","",null,null,"",""]
[null,null,null,null,null,null,null,null,null,null,null,null,null,null,null,null,null,null,null,null,null,null,null,"N1","Vid. taršus automobilis",{"$f":"AV11","v":3.2000000000000002E-3},null,20,"","",null,null,null,null,"","",null,null,"",""]
[null,null,null,null,null,null,null,null,null,null,null,null,null,null,null,null,null,null,null,null,null,null,null,null,null,null,null,21,"","",null,null,null,null,"","",null,null,"",""]
[null,null,null,null,null,null,null,null,null,null,null,null,null,null,null,null,null,null,null,null,null,null,null,"N2","Benzinas",{"$f":"AV12","v":5.1000000000000004E-3},null,22,22,"",null,null,null,null,"","",null,null,"",""]
[null,null,null,null,null,null,null,null,null,null,null,null,null,null,null,null,null,null,null,null,null,null,null,"N2","Suskystintos naftos dujos",{"$f":"AV14","v":7.9000000000000008E-3},null,23,23,"",null,null,null,null,"","",null,null,23,""]
[null,null,null,null,null,null,null,null,null,null,null,null,null,null,null,null,null,null,null,null,null,null,null,"N2","Dyzelinas",{"$f":"AV13","v":9.7999999999999997E-3},null,24,24,"",null,null,null,null,24,"",null,null,"",""]
[null,null,null,null,null,null,null,null,null,null,null,null,null,null,null,null,null,null,null,null,null,null,null,"N2","Elektra",0,null,25,25,"",null,null,null,null,"","",null,null,"",""]
[null,null,null,null,null,null,null,null,null,null,null,null,null,null,null,null,null,null,null,null,null,null,null,"N2","Vid. taršus automobilis",{"$f":"AV15","v":9.4999999999999998E-3},null,26,26,"",null,null,null,null,"","",null,null,"",""]
[null,null,null,null,null,null,null,null,null,null,null,null,null,null,null,null,null,null,null,null,null,null,null,null,null,null,null,27,"","",null,null,null,null,"","",null,null,"",""]
[null,null,null,null,null,null,null,null,null,null,null,null,null,null,null,null,null,null,null,null,null,null,null,"N3","Dyzelinas",{"$f":"AV16","v":1.78E-2},null,28,"","",null,null,null,null,"","",null,null,"",""]
[null,null,null,null,null,null,null,null,null,null,null,null,null,null,null,null,null,null,null,null,null,null,null,"N3","Elektra",0,null,29,"","",null,null,null,null,"","",null,null,"",""]
[null,null,null,null,null,null,null,null,null,null,null,null,null,null,null,null,null,null,null,null,null,null,null,null,null,{"$f":"AV16","v":1.78E-2},null,30,"","",null,null,null,null,"","",null,null,"",""]
[null,null,null,null,null,null,null,null,null,null,null,null,null,null,null,null,null,null,null,null,null,null,null,null,null,null,null,31,"","",null,null,null,null,"","",null,null,"",""]
[]
[null,null,null,null,null,null,null,null,null,null,null,null,null,null,null,null,null,null,null,null,null,null,2029,"Duomenys \"helper\" stulpeliams",null,null,"Helper stulpeliai",null,null,null,null,"Degalų rušies dropdown'ui. Pagal H3 stulpelį suranda kokios kuro rūšis aktualios TP klasei"]
[null,null,null,null,null,null,null,null,null,null,null,null,null,null,null,null,null,null,null,null,null,null,"Q","Priemonės tipas","Kuro tipas","kt CO2 eq. per metus",null,"H1","H2","H3",null,"Dropdown 2",null,null,"H2 for old vehicle CO2 eq. value","H3 for CO2 eq. value",null,null,"H2 for new vehicle CO2 value"]
[null,null,null,null,null,null,null,null,null,null,null,null,null,null,null,null,null,null,null,null,null,null,null,"M1","Benzinas",{"$f":"AW3","v":1.5E-3},null,1,{"$f":"IF(X209=N$12,AB209,\"\")","v":""},{"$f":"IFERROR(SMALL(AC$209:AC$239,AB209),\"\")","v":22},null,{"$f":"IFERROR(INDEX(Y$3:Y$31,AD209,COLUMNS(AF209:AF209)),\"\")","v":"Benzinas"},null,null,{"$f":"IF(AND(N$12=X209,Y209=N$14),AB209,\"\")","v":""},{"$f":"IFERROR(SMALL(AI$209:AI$239,AB209),\"\")","v":24},null,null,{"$f":"IF(AND(N$12=X209,Y209=N$18),AB209,\"\")","v":""},{"$f":"IFERROR(SMALL(AM$209:AM$239,AB209),\"\")","v":23}]
[null,null,null,null,null,null,null,null,null,null,null,null,null,null,null,null,null,null,null,null,null,null,null,"M1","Suskystintos naftos dujos",{"$f":"AW5","v":2.7000000000000001E-3},null,2,"",23,null,{"$f":"IFERROR(INDEX(Y$3:Y$31,AD210,COLUMNS(AF210:AF210)),\"\")","v":"Suskystintos naftos dujos"},null,null,"","",null,null,"",""]
[null,null,null,null,null,null,null,null,null,null,null,null,null,null,null,null,null,null,null,null,null,null,null,"M1","Benzinas/Elektra (hibridiniai)",{"$f":"AW6","v":2.8999999999999998E-3},null,3,"",24,null,{"$f":"IFERROR(INDEX(Y$3:Y$31,AD211,COLUMNS(AF211:AF211)),\"\")","v":"Dyzelinas"},null,null,"","",null,null,"",""]
[null,null,null,null,null,null,null,null,null,null,null,null,null,null,null,null,null,null,null,null,null,null,null,"M1","Dyzelinas",2.3742094861889536E-3,null,4,"",25,null,{"$f":"IFERROR(INDEX(Y$3:Y$31,AD212,COLUMNS(AF212:AF212)),\"\")","v":"Elektra"},null,null,"","",null,null,"",""]
[null,null,null,null,null,null,null,null,null,null,null,null,null,null,null,null,null,null,null,null,null,null,null,"M1","Elektra",0,null,5,"",26,null,{"$f":"IFERROR(INDEX(Y$3:Y$31,AD213,COLUMNS(AF213:AF213)),\"\")","v":"Vid. taršus automobilis"},null,null,"","",null,null,"",""]
[null,null,null,null,null,null,null,null,null,null,null,null,null,null,null,null,null,null,null,null,null,null,null,"M1","Vid. taršus automobilis",{"$f":"AW7","v":1.6999999999999999E-3},null,6,"","",null,{"$f":"IFERROR(INDEX(Y$3:Y$31,AD214,COLUMNS(AF214:AF214)),\"\")","v":""},null,null,"","",null,null,"",""]
[null,null,null,null,null,null,null,null,null,null,null,null,null,null,null,null,null,null,null,null,null,null,null,null,null,null,null,7,"","",null,{"$f":"IFERROR(INDEX(Y$3:Y$31,AD215,COLUMNS(AF215:AF215)),\"\")","v":""},null,null,"","",null,null,"",""]
[null,null,null,null,null,null,null,null,null,null,null,null,null,null,null,null,null,null,null,null,null,null,null,"M2","Dyzelinas",{"$f":"AW17","v":1.5599999999999999E-2},null,8,"","",null,{"$f":"IFERROR(INDEX(Y$3:Y$31,AD216,COLUMNS(AF216:AF216)),\"\")","v":""},null,null,"","",null,null,"",""]
[null,null,null,null,null,null,null,null,null,null,null,null,null,null,null,null,null,null,null,null,null,null,null,"M2","Elektra",0,null,9,"","",null,{"$f":"IFERROR(INDEX(Y$3:Y$31,AD217,COLUMNS(AF217:AF217)),\"\")","v":""},null,null,"","",null,null,"",""]
[null,null,null,null,null,null,null,null,null,null,null,null,null,null,null,null,null,null,null,null,null,null,null,null,null,{"$f":"AW17","v":1.5599999999999999E-2},null,10,"","",null,{"$f":"IFERROR(INDEX(Y$3:Y$31,AD218,COLUMNS(AF218:AF218)),\"\")","v":""},null,null,"","",null,null,"",""]
[null,null,null,null,null,null,null,null,null,null,null,null,null,null,null,null,null,null,null,null,null,null,null,null,null,null,null,11,"","",null,{"$f":"IFERROR(INDEX(Y$3:Y$31,AD219,COLUMNS(AF219:AF219)),\"\")","v":""},null,null,"","",null,null,"",""]
[null,null,null,null,null,null,null,null,null,null,null,null,null,null,null,null,null,null,null,null,null,null,null,"M3","Dyzelinas",{"$f":"AW18","v":8.8499999999999995E-2},null,12,"","",null,{"$f":"IFERROR(INDEX(Y$3:Y$31,AD220,COLUMNS(AF220:AF220)),\"\")","v":""},null,null,"","",null,null,"",""]
[null,null,null,null,null,null,null,null,null,null,null,null,null,null,null,null,null,null,null,null,null,null,null,"M3","Elektra",0,null,13,"","",null,{"$f":"IFERROR(INDEX(Y$3:Y$31,AD221,COLUMNS(AF221:AF221)),\"\")","v":""},null,null,"","",null,null,"",""]
[null,null,null,null,null,null,null,null,null,null,null,null,null,null,null,null,null,null,null,null,null,null,null,null,null,{"$f":"AW18","v":8.8499999999999995E-2},null,14,"","",null,{"$f":"IFERROR(INDEX(Y$3:Y$31,AD222,COLUMNS(AF222:AF222)),\"\")","v":""},null,null,"","",null,null,"",""]
[null,null,null,null,null,null,null,null,null,null,null,null,null,null,null,null,null,null,null,null,null,null,null,null,null,null,null,15,"","",null,{"$f":"IFERROR(INDEX(Y$3:Y$31,AD223,COLUMNS(AF223:AF223)),\"\")","v":""},null,null,"","",null,null,"",""]
[null,null,null,null,null,null,null,null,null,null,null,null,null,null,null,null,null,null,null,null,null,null,null,"N1","Benzinas",{"$f":"AW8","v":3.3999999999999998E-3},null,16,"","",null,{"$f":"IFERROR(INDEX(Y$3:Y$31,AD224,COLUMNS(AF224:AF224)),\"\")","v":""},null,null,"","",null,null,"",""]
[null,null,null,null,null,null,null,null,null,null,null,null,null,null,null,null,null,null,null,null,null,null,null,"N1","Suskystintos naftos dujos",{"$f":"AW10","v":4.5999999999999999E-3},null,17,"","",null,{"$f":"IFERROR(INDEX(Y$3:Y$31,AD225,COLUMNS(AF225:AF225)),\"\")","v":""},null,null,"","",null,null,"",""]
[null,null,null,null,null,null,null,null,null,null,null,null,null,null,null,null,null,null,null,null,null,null,null,"N1","Dyzelinas",{"$f":"AW9","v":3.0000000000000001E-3},null,18,"","",null,{"$f":"IFERROR(INDEX(Y$3:Y$31,AD226,COLUMNS(AF226:AF226)),\"\")","v":""},null,null,"","",null,null,"",""]
[null,null,null,null,null,null,null,null,null,null,null,null,null,null,null,null,null,null,null,null,null,null,null,"N1","Elektra",0,null,19,"","",null,{"$f":"IFERROR(INDEX(Y$3:Y$31,AD227,COLUMNS(AF227:AF227)),\"\")","v":""},null,null,"","",null,null,"",""]
[null,null,null,null,null,null,null,null,null,null,null,null,null,null,null,null,null,null,null,null,null,null,null,"N1","Vid. taršus automobilis",{"$f":"AW11","v":3.0000000000000001E-3},null,20,"","",null,null,null,null,"","",null,null,"",""]
[null,null,null,null,null,null,null,null,null,null,null,null,null,null,null,null,null,null,null,null,null,null,null,null,null,null,null,21,"","",null,null,null,null,"","",null,null,"",""]
[null,null,null,null,null,null,null,null,null,null,null,null,null,null,null,null,null,null,null,null,null,null,null,"N2","Benzinas",{"$f":"AW12","v":5.1000000000000004E-3},null,22,22,"",null,null,null,null,"","",null,null,"",""]
[null,null,null,null,null,null,null,null,null,null,null,null,null,null,null,null,null,null,null,null,null,null,null,"N2","Suskystintos naftos dujos",{"$f":"AW14","v":7.9000000000000008E-3},null,23,23,"",null,null,null,null,"","",null,null,23,""]
[null,null,null,null,null,null,null,null,null,null,null,null,null,null,null,null,null,null,null,null,null,null,null,"N2","Dyzelinas",{"$f":"AW13","v":9.7999999999999997E-3},null,24,24,"",null,null,null,null,24,"",null,null,"",""]
[null,null,null,null,null,null,null,null,null,null,null,null,null,null,null,null,null,null,null,null,null,null,null,"N2","Elektra",0,null,25,25,"",null,null,null,null,"","",null,null,"",""]
[null,null,null,null,null,null,null,null,null,null,null,null,null,null,null,null,null,null,null,null,null,null,null,"N2","Vid. taršus automobilis",{"$f":"AW15","v":9.4999999999999998E-3},null,26,26,"",null,null,null,null,"","",null,null,"",""]
[null,null,null,null,null,null,null,null,null,null,null,null,null,null,null,null,null,null,null,null,null,null,null,null,null,null,null,27,"","",null,null,null,null,"","",null,null,"",""]
[null,null,null,null,null,null,null,null,null,null,null,null,null,null,null,null,null,null,null,null,null,null,null,"N3","Dyzelinas",{"$f":"AW16","v":1.6899999999999998E-2},null,28,"","",null,null,null,null,"","",null,null,"",""]
[null,null,null,null,null,null,null,null,null,null,null,null,null,null,null,null,null,null,null,null,null,null,null,"N3","Elektra",0,null,29,"","",null,null,null,null,"","",null,null,"",""]
[null,null,null,null,null,null,null,null,null,null,null,null,null,null,null,null,null,null,null,null,null,null,null,null,null,{"$f":"AW16","v":1.6899999999999998E-2},null,30,"","",null,null,null,null,"","",null,null,"",""]
[null,null,null,null,null,null,null,null,null,null,null,null,null,null,null,null,null,null,null,null,null,null,null,null,null,null,null,31,"","",null,null,null,null,"","",null,null,"",""]
[]
[null,null,null,null,null,null,null,null,null,null,null,null,null,null,null,null,null,null,null,null,null,null,2030,"Duomenys \"helper\" stulpeliams",null,null,"Helper stulpeliai",null,null,null,null,"Degalų rušies dropdown'ui. Pagal H3 stulpelį suranda kokios kuro rūšis aktualios TP klasei"]
[null,null,null,null,null,null,null,null,null,null,null,null,null,null,null,null,null,null,null,null,null,null,"S","Priemonės tipas","Kuro tipas","kt CO2 eq. per metus",null,"H1","H2","H3",null,"Dropdown 2",null,null,"H2 for old vehicle CO2 eq. value","H3 for CO2 eq. value",null,null,"H2 for new vehicle CO2 value"]
[null,null,null,null,null,null,null,null,null,null,null,null,null,null,null,null,null,null,null,null,null,null,null,"M1","Benzinas",{"$f":"AX3","v":1.4E-3},null,1,{"$f":"IF(X243=O$12,AB243,\"\")","v":""},{"$f":"IFERROR(SMALL(AC$243:AC$273,AB243),\"\")","v":22},null,{"$f":"IFERROR(INDEX(Y$3:Y$31,AD243,COLUMNS(AF243:AF243)),\"\")","v":"Benzinas"},null,null,{"$f":"IF(AND(O$12=X243,Y243=O$14),AB243,\"\")","v":""},{"$f":"IFERROR(SMALL(AI$243:AI$273,AB243),\"\")","v":24},null,null,{"$f":"IF(AND(O$12=X243,Y243=O$18),AB243,\"\")","v":""},{"$f":"IFERROR(SMALL(AM$243:AM$273,AB243),\"\")","v":23}]
[null,null,null,null,null,null,null,null,null,null,null,null,null,null,null,null,null,null,null,null,null,null,null,"M1","Suskystintos naftos dujos",{"$f":"AX5","v":2.8E-3},null,2,"",23,null,{"$f":"IFERROR(INDEX(Y$3:Y$31,AD244,COLUMNS(AF244:AF244)),\"\")","v":"Suskystintos naftos dujos"},null,null,"","",null,null,"",""]
[null,null,null,null,null,null,null,null,null,null,null,null,null,null,null,null,null,null,null,null,null,null,null,"M1","Benzinas/Elektra (hibridiniai)",{"$f":"AX6","v":2.8999999999999998E-3},null,3,"",24,null,{"$f":"IFERROR(INDEX(Y$3:Y$31,AD245,COLUMNS(AF245:AF245)),\"\")","v":"Dyzelinas"},null,null,"","",null,null,"",""]
[null,null,null,null,null,null,null,null,null,null,null,null,null,null,null,null,null,null,null,null,null,null,null,"M1","Dyzelinas",2.3742094861889536E-3,null,4,"",25,null,{"$f":"IFERROR(INDEX(Y$3:Y$31,AD246,COLUMNS(AF246:AF246)),\"\")","v":"Elektra"},null,null,"","",null,null,"",""]
[null,null,null,null,null,null,null,null,null,null,null,null,null,null,null,null,null,null,null,null,null,null,null,"M1","Elektra",0,null,5,"",26,null,{"$f":"IFERROR(INDEX(Y$3:Y$31,AD247,COLUMNS(AF247:AF247)),\"\")","v":"Vid. taršus automobilis"},null,null,"","",null,null,"",""]
[null,null,null,null,null,null,null,null,null,null,null,null,null,null,null,null,null,null,null,null,null,null,null,"M1","Vid. taršus automobilis",{"$f":"AX7","v":1.6999999999999999E-3},null,6,"","",null,{"$f":"IFERROR(INDEX(Y$3:Y$31,AD248,COLUMNS(AF248:AF248)),\"\")","v":""},null,null,"","",null,null,"",""]
[null,null,null,null,null,null,null,null,null,null,null,null,null,null,null,null,null,null,null,null,null,null,null,null,null,null,null,7,"","",null,{"$f":"IFERROR(INDEX(Y$3:Y$31,AD249,COLUMNS(AF249:AF249)),\"\")","v":""},null,null,"","",null,null,"",""]
[null,null,null,null,null,null,null,null,null,null,null,null,null,null,null,null,null,null,null,null,null,null,null,"M2","Dyzelinas",{"$f":"AX17","v":1.5599999999999999E-2},null,8,"","",null,{"$f":"IFERROR(INDEX(Y$3:Y$31,AD250,COLUMNS(AF250:AF250)),\"\")","v":""},null,null,"","",null,null,"",""]
[null,null,null,null,null,null,null,null,null,null,null,null,null,null,null,null,null,null,null,null,null,null,null,"M2","Elektra",0,null,9,"","",null,{"$f":"IFERROR(INDEX(Y$3:Y$31,AD251,COLUMNS(AF251:AF251)),\"\")","v":""},null,null,"","",null,null,"",""]
[null,null,null,null,null,null,null,null,null,null,null,null,null,null,null,null,null,null,null,null,null,null,null,null,null,{"$f":"AX17","v":1.5599999999999999E-2},null,10,"","",null,{"$f":"IFERROR(INDEX(Y$3:Y$31,AD252,COLUMNS(AF252:AF252)),\"\")","v":""},null,null,"","",null,null,"",""]
[null,null,null,null,null,null,null,null,null,null,null,null,null,null,null,null,null,null,null,null,null,null,null,null,null,null,null,11,"","",null,{"$f":"IFERROR(INDEX(Y$3:Y$31,AD253,COLUMNS(AF253:AF253)),\"\")","v":""},null,null,"","",null,null,"",""]
[null,null,null,null,null,null,null,null,null,null,null,null,null,null,null,null,null,null,null,null,null,null,null,"M3","Dyzelinas",{"$f":"AX18","v":8.8499999999999995E-2},null,12,"","",null,{"$f":"IFERROR(INDEX(Y$3:Y$31,AD254,COLUMNS(AF254:AF254)),\"\")","v":""},null,null,"","",null,null,"",""]
[null,null,null,null,null,null,null,null,null,null,null,null,null,null,null,null,null,null,null,null,null,null,null,"M3","Elektra",0,null,13,"","",null,{"$f":"IFERROR(INDEX(Y$3:Y$31,AD255,COLUMNS(AF255:AF255)),\"\")","v":""},null,null,"","",null,null,"",""]
[null,null,null,null,null,null,null,null,null,null,null,null,null,null,null,null,null,null,null,null,null,null,null,null,null,{"$f":"AX18","v":8.8499999999999995E-2},null,14,"","",null,{"$f":"IFERROR(INDEX(Y$3:Y$31,AD256,COLUMNS(AF256:AF256)),\"\")","v":""},null,null,"","",null,null,"",""]
[null,null,null,null,null,null,null,null,null,null,null,null,null,null,null,null,null,null,null,null,null,null,null,null,null,null,null,15,"","",null,{"$f":"IFERROR(INDEX(Y$3:Y$31,AD257,COLUMNS(AF257:AF257)),\"\")","v":""},null,null,"","",null,null,"",""]
[null,null,null,null,null,null,null,null,null,null,null,null,null,null,null,null,null,null,null,null,null,null,null,"N1","Benzinas",{"$f":"AX8","v":3.3999999999999998E-3},null,16,"","",null,{"$f":"IFERROR(INDEX(Y$3:Y$31,AD258,COLUMNS(AF258:AF258)),\"\")","v":""},null,null,"","",null,null,"",""]
[null,null,null,null,null,null,null,null,null,null,null,null,null,null,null,null,null,null,null,null,null,null,null,"N1","Suskystintos naftos dujos",{"$f":"AX10","v":4.5999999999999999E-3},null,17,"","",null,{"$f":"IFERROR(INDEX(Y$3:Y$31,AD259,COLUMNS(AF259:AF259)),\"\")","v":""},null,null,"","",null,null,"",""]
[null,null,null,null,null,null,null,null,null,null,null,null,null,null,null,null,null,null,null,null,null,null,null,"N1","Dyzelinas",{"$f":"AX9","v":2.8999999999999998E-3},null,18,"","",null,{"$f":"IFERROR(INDEX(Y$3:Y$31,AD260,COLUMNS(AF260:AF260)),\"\")","v":""},null,null,"","",null,null,"",""]
[null,null,null,null,null,null,null,null,null,null,null,null,null,null,null,null,null,null,null,null,null,null,null,"N1","Elektra",0,null,19,"","",null,{"$f":"IFERROR(INDEX(Y$3:Y$31,AD261,COLUMNS(AF261:AF261)),\"\")","v":""},null,null,"","",null,null,"",""]
[null,null,null,null,null,null,null,null,null,null,null,null,null,null,null,null,null,null,null,null,null,null,null,"N1","Vid. taršus automobilis",{"$f":"AX10","v":4.5999999999999999E-3},null,20,"","",null,null,null,null,"","",null,null,"",""]
[null,null,null,null,null,null,null,null,null,null,null,null,null,null,null,null,null,null,null,null,null,null,null,null,null,null,null,21,"","",null,null,null,null,"","",null,null,"",""]
[null,null,null,null,null,null,null,null,null,null,null,null,null,null,null,null,null,null,null,null,null,null,null,"N2","Benzinas",{"$f":"AX12","v":5.1000000000000004E-3},null,22,22,"",null,null,null,null,"","",null,null,"",""]
[null,null,null,null,null,null,null,null,null,null,null,null,null,null,null,null,null,null,null,null,null,null,null,"N2","Suskystintos naftos dujos",{"$f":"AX14","v":7.9000000000000008E-3},null,23,23,"",null,null,null,null,"","",null,null,23,""]
[null,null,null,null,null,null,null,null,null,null,null,null,null,null,null,null,null,null,null,null,null,null,null,"N2","Dyzelinas",{"$f":"AX13","v":9.7999999999999997E-3},null,24,24,"",null,null,null,null,24,"",null,null,"",""]
[null,null,null,null,null,null,null,null,null,null,null,null,null,null,null,null,null,null,null,null,null,null,null,"N2","Elektra",0,null,25,25,"",null,null,null,null,"","",null,null,"",""]
[null,null,null,null,null,null,null,null,null,null,null,null,null,null,null,null,null,null,null,null,null,null,null,"N2","Vid. taršus automobilis",{"$f":"AX15","v":9.4999999999999998E-3},null,26,26,"",null,null,null,null,"","",null,null,"",""]
[null,null,null,null,null,null,null,null,null,null,null,null,null,null,null,null,null,null,null,null,null,null,null,null,null,null,null,27,"","",null,null,null,null,"","",null,null,"",""]
[null,null,null,null,null,null,null,null,null,null,null,null,null,null,null,null,null,null,null,null,null,null,null,"N3","Dyzelinas",{"$f":"AX16","v":1.5699999999999999E-2},null,28,"","",null,null,null,null,"","",null,null,"",""]
[null,null,null,null,null,null,null,null,null,null,null,null,null,null,null,null,null,null,null,null,null,null,null,"N3","Elektra",0,null,29,"","",null,null,null,null,"","",null,null,"",""]
[null,null,null,null,null,null,null,null,null,null,null,null,null,null,null,null,null,null,null,null,null,null,null,null,null,{"$f":"AX16","v":1.5699999999999999E-2},null,30,"","",null,null,null,null,"","",null,null,"",""]
[null,null,null,null,null,null,null,null,null,null,null,null,null,null,null,null,null,null,null,null,null,null,null,null,null,null,null,31,"","",null,null,null,null,"","",null,null,"",""]

{"sheet":"ATNAUJINIMAS","index":3,"n_rows":9,"n_cols":8,"rows_kept":9,"cut":false,"hidden":false,"merged":[[0,16,4,20]]}
[]
[]
[]
[null,null,null,null,"Skaičiuoklės versijos ID*","Atnaujinimo data","Administratorius","Pastabos"]
[null,null,null,null," v 1.0.","2024.03.01","AAA Aplinkos būklės analitikos centras"," viešinimas"]
[null,null,null,null,null,"2025.12.19","AAA Aplinkos būklės analitikos centras","Versijos viešinimas"]
[]
[]
[null,null,null,null,null,"* - nuolat atnaujinama"]